Cogmind - Beta 17 @@@ ROGUE MODE // 2026.07.14 @ 04:33:53 Player: kite Result: Self-destructed Performance ------------- Evolutions (9) 4500 Regions Visited (32) 6400 Robots Destroyed (432) 2160 Value Destroyed (22358) 22358 Prototype IDs (50) 1000 Alien Tech Used (0) 0 Bonus (19404) 19404 TOTAL SCORE: 55822 Bonus ------- High Alert Combat Kills 5140 Follower Combat Kills 3755 Entered Garrisons 800 Entered DSFs 500 Network Hubs Disabled 200 Aligned with FarCom 300 Acquired ECA 300 Met Warlord at Base 500 MAIN.C Attacked Warlord 500 Warlord Defense Kills 1368 Built Enhanced Grunts 300 A7 Reached Mainframe 300 Met R17 at Cetus 500 Met R17 at Research 2000 Met Warlord at Research 2000 Destroyed MAIN.C Guards 500 Met Warlord at Command 2000 Friendly Fire -1559 Cogmind --------- Core Integrity 1441/1600 Matter 14/300 Energy 230/230 System Corruption 3% Temperature Cool (14) Movement Immobile (Siege) Location -1/Command Parts ------- > --- POWER (3) -------- Light Fission Core Light Antimatter Reactor > --- PROPULSION (6) --- Improved Heavy Siege Treads Centrium Heavy Treads > --- UTILITY (11) ----- Huge Storage Unit Experimental Core Analyzer Graphene Brace EM Shield Advanced Force Field Improved Point Defense System Advanced Point Defense System Advanced Hacking Suite Dynamic Insulation System > --- WEAPON (5) ------- Point Singularity Launcher Phasing Sabre (fused) Plasma Lance Plasma Lance > --- INVENTORY (25) --- Neutrino Core Armored Heavy Treads Improved Heavy Siege Treads Improved Heavy Siege Treads Advanced Launcher Guidance Computer Nanoactuators Improved Force Booster Improved Transmission Jammer Improved Powered Armor Advanced Force Field Improved Remote Force Field Advanced Remote Datajack Plasma Sword Dual-blade Saw Plasma Lance Peak State ------------ > --- POWER ------------ Particle Reactor Quantum Reactor Light Quantum Reactor > --- PROPULSION ------- Centrium Heavy Treads Centrium Heavy Treads Centrium Heavy Treads > --- UTILITY ---------- Huge Storage Unit Experimental Core Analyzer Improved Powered Armor Graphene Brace EM Shield Improved Remote Force Field Point Defense System Improved Point Defense System Advanced Point Defense System Advanced Hacking Suite Dynamic Insulation System > --- WEAPON ----------- Point Singularity Launcher Phasing Sabre Dual-blade Saw Particle Cleaver Plasma Lance > --- INVENTORY -------- Quantum Reactor Armored Heavy Treads Improved Heavy Siege Treads Improved Heavy Siege Treads Improved Heavy Siege Treads Advanced Launcher Guidance Computer Nanoactuators Improved Force Booster Improved Transmission Jammer Improved Powered Armor Advanced Force Field Advanced Force Field Gamma Bomb Array Advanced Remote Datajack Plasma Sword Plasma Lance Plasma Lance Enhanced Force Lance [Rating: 204] Favorites ----------- Power Vortex Chain Reactor Engine Improved Ion Engine Power Core Light Nuclear Core Reactor Vortex Chain Reactor Propulsion Armored Medium Treads Treads Armored Medium Treads Leg Aluminum Leg Wheel Wheel Utility High-capacity Storage Unit Device Improved Transmission Jammer Storage High-capacity Storage Unit Processor Improved Melee Analysis Suite Hackware Advanced Hacking Suite Protection Improved Heavy Armor Plating Weapon Lance Energy Gun AWS/Thermal Energy Cannon Vortex Cannon Ballistic Gun Light Assault Rifle Launcher Improved Proton Missile Launcher Special Weapon Remote Datajack Impact Weapon Great Maul Slashing Weapon Plasma Sword Piercing Weapon Lance Special Melee Weapon Advanced Datajack Build | -11 -10 -10 -9 -9 -9 -8 -8 -8 -8 -8 -7 -7 -7 -7 -6 -6 -6 -6 -5 -5 -5 -5 -4 -4 -4 -4 -4 -4 -3 -2 -1 -1 ------- Run | Yrd Mat Min Mat Min Exi Min Mat Gar Mat Gar Fac Gar Fac Gar Fac Was Fac DSF Fac Upp Upp War Pro Fac Ext Cet Arc Hub Res Res Acc Com Slots Evolved 18 | . . . 2 . . . 2 . . . 2 . . . 2 . . . 2 . . . . 2 . . . . 2 2 2 . Power 2 | . . . . . . . . . . . . . . . . . . . 1 . . . . . . . . . . 1 . . Propulsion 4 | . . . 2 . . . . . . . 1 . . . . . . . . . . . . . . . . . 1 . . . Utility 9 | . . . . . . . 1 . . . . . . . 2 . . . 1 . . . . 2 . . . . . 1 2 . Weapon 3 | . . . . . . . 1 . . . 1 . . . . . . . . . . . . . . . . . 1 . . . Parts Attached 286 | 6 12 4 14 . 1 . 4 6 16 24 19 13 4 4 6 1 . 10 25 3 4 12 6 16 13 6 6 1 22 18 3 7 Power 28 | 1 2 . 2 . . . 2 . 1 1 1 2 1 . 2 1 . . 3 . 1 1 . . . . . . 2 3 . 2 Engine 9 | 1 2 . 2 . . . 1 . . . . . 1 . . . . . 2 . . . . . . . . . . . . . Core 10 | . . . . . . . 1 . 1 1 1 2 . . 1 . . . 1 . 1 . . . . . . . . . . 1 Reactor 9 | . . . . . . . . . . . . . . . 1 1 . . . . . 1 . . . . . . 2 3 . 1 Propulsion 79 | 2 4 2 4 . . . . 4 6 8 8 5 . 1 1 . . 7 7 . 2 1 . 3 7 3 . . 1 2 . 1 Treads 66 | 2 1 . 4 . . . . 4 6 8 4 4 . 1 1 . . 7 6 . 2 . . 3 6 3 . . 1 2 . 1 Leg 8 | . 3 2 . . . . . . . . . . . . . . . . 1 . . 1 . . 1 . . . . . . . Wheel 5 | . . . . . . . . . . . 4 1 . . . . . . . . . . . . . . . . . . . . Hover . | . . . . . . . . . . . . . . . . . . . . . . . . . . . . . . . . . Flight . | . . . . . . . . . . . . . . . . . . . . . . . . . . . . . . . . . Utility 115 | 1 2 1 5 . 1 . 1 . 5 5 5 5 . 2 2 . . 3 11 3 1 7 5 12 4 3 5 1 13 7 3 2 Device 57 | . 2 1 2 . . . 1 . 1 2 3 1 . . 2 . . . 6 2 . 2 3 7 2 1 3 1 9 3 1 2 Storage 11 | 1 . . 1 . 1 . . . 1 . 1 1 . 1 . . . 1 . . . 1 . 1 . . . . . 1 . . Processor 15 | . . . . . . . . . 1 1 . . . . . . . 1 4 1 1 1 1 . . . . . 1 2 1 . Hackware 8 | . . . . . . . . . . . . . . . . . . . . . . . . 3 . . 2 . 2 . 1 . Protection 24 | . . . 2 . . . . . 2 2 1 3 . 1 . . . 1 1 . . 3 1 1 2 2 . . 1 1 . . Artifact . | . . . . . . . . . . . . . . . . . . . . . . . . . . . . . . . . . Weapon 64 | 2 4 1 3 . . . 1 2 4 10 5 1 3 1 1 . . . 4 . . 3 1 1 2 . 1 . 6 6 . 2 Energy Gun 8 | . 4 1 . . . . . . . 2 . . . . . . . . . . . 1 . . . . . . . . . . Energy Cannon 1 | . . . . . . . . . . . . . . . . . . . . . . 1 . . . . . . . . . . Ballistic Gun 2 | 2 . . . . . . . . . . . . . . . . . . . . . . . . . . . . . . . . Ballistic Cannon . | . . . . . . . . . . . . . . . . . . . . . . . . . . . . . . . . . Launcher 11 | . . . 1 . . . . 1 1 2 1 . . . . . . . . . . . . . 1 . . . 1 2 . 1 Special Weapon 1 | . . . . . . . . . . . . . . . 1 . . . . . . . . . . . . . . . . . Impact Weapon 11 | . . . 2 . . . 1 1 1 2 2 . . . . . . . 1 . . . . . . . . . 1 . . . Slashing Weapon 21 | . . . . . . . . . 2 4 2 1 2 1 . . . . 3 . . 1 . . 1 . 1 . 1 2 . . Piercing Weapon 8 | . . . . . . . . . . . . . 1 . . . . . . . . . 1 . . . . . 3 2 . 1 Special Melee Weapon 1 | . . . . . . . . . . . . . . . . . . . . . . . . 1 . . . . . . . . Unidentified Prototypes 27 | . . . . . . . 1 . 1 . . 1 1 . . . . . 3 . . 7 1 . . 2 . . 4 6 . . Corrupted Parts 6 | . . . . . . . . . . . . . . . . . . 1 . . . . 1 . . 3 . . . 1 . . System Corruption 43 | . . . . . . . . . . . . . . . . . . 10 . . . . 10 . . 22 . . . 1 . . Parts Lost 45 | . . . 2 . . . . 1 . 3 11 9 . . 1 . . 2 1 . 1 1 . . 2 . . 2 2 . . 7 Power 6 | . . . 2 . . . . . . . . 2 . . . . . . 1 . 1 . . . . . . . . . . . Propulsion 18 | . . . . . . . . . . 1 7 5 . . 1 . . 1 . . . . . . . . . 1 . . . 2 Utility 11 | . . . . . . . . 1 . 2 . . . . . . . 1 . . . 1 . . 2 . . 1 1 . . 2 Weapon 10 | . . . . . . . . . . . 4 2 . . . . . . . . . . . . . . . . 1 . . 3 Highest Loss Streak 6 | . . . 1 . . . . 1 . 1 6 3 . . 1 . . 2 1 . 1 1 . . 2 . . 1 1 . . 6 To Critical Strikes 1 | . . . . . . . . . . . . . . . 1 . . . . . . . . . . . . . . . . . Average Backups 18 | 2 7 8 8 13 13 14 15 17 18 19 16 16 17 15 14 15 15 16 19 19 19 19 20 21 24 24 22 22 21 20 20 18 Power 1 | . . . . . . . . 1 1 1 1 . 1 1 1 2 1 1 1 1 . 1 1 1 2 2 2 2 1 . 1 1 Propulsion 4 | 1 3 2 . 4 4 4 4 5 4 3 2 3 4 3 2 2 3 5 6 6 6 5 5 4 4 4 3 2 3 4 4 4 Utility 7 | . 1 3 3 4 4 4 4 4 5 5 5 6 5 5 5 6 6 4 5 6 5 8 10 11 14 11 12 12 11 9 9 8 Weapon 5 | . 1 2 4 5 5 6 5 6 8 9 8 5 5 4 4 4 4 4 5 6 6 4 4 3 3 5 4 5 4 5 5 4 Tool/Special . | . . . . . . . . . . . . . . . . . . . . . . . . . . . . . . . . . Unused Backups 99 | . 6 2 2 . 1 . . 2 8 4 3 2 2 5 . 2 . 2 3 . 1 3 . 10 8 3 2 1 14 5 . 8 Power 13 | . 1 . . . . . . . . 1 . . 1 . . 2 . . . . 1 . . . 3 1 . . 1 . . 2 Propulsion 26 | . 2 2 1 . . . . 1 1 1 . . . . . . . 2 . . . 1 . 5 1 1 1 . 5 . . 2 Utility 43 | . 2 . 1 . 1 . . 1 5 1 3 2 1 4 . . . . 2 . . 1 . 5 4 1 1 1 4 . . 3 Weapon 14 | . 1 . . . . . . . 2 1 . . . . . . . . 1 . . 1 . . . . . . 4 4 . . Tool/Special 3 | . . . . . . . . . . . . . . 1 . . . . . . . . . . . . . . . 1 . 1 Average Slot Usage (%) 87 | . 96 100 92 100 100 100 85 93 96 93 90 75 76 82 85 86 86 86 89 88 87 87 87 88 87 83 81 80 82 85 87 86 Engine 2 | . 14 14 8 11 11 11 4 . . . . . 3 7 5 . . . 4 5 2 . . . . . . . . . . . Core 2 | . . . . . . . 3 9 9 9 7 6 3 . . . . . . 5 5 6 . . . . . . . . . . Reactor 3 | . . . . . . . . . . . . . . . . 6 6 6 4 . 1 2 5 5 5 5 5 5 6 12 12 10 Treads 24 | . 17 . 43 44 44 44 36 35 35 35 31 20 23 23 20 20 20 25 23 23 23 23 23 20 22 18 15 14 13 12 12 11 Device 9 | . 10 14 7 . . . 1 4 . . 6 . 6 . 17 13 13 6 12 5 5 5 16 17 17 15 18 14 12 16 19 23 Storage 6 | . 14 14 11 11 11 11 9 9 11 9 7 7 7 7 6 6 6 8 5 5 5 5 5 5 5 5 5 5 4 4 4 4 Processor 6 | . . . . . . . . . 6 8 7 7 7 7 6 6 6 2 8 11 11 13 11 5 5 5 5 5 4 5 8 6 Hackware 2 | . . . . . . . . . . . . . . . . . . . . . . . . 7 5 5 6 10 10 8 8 6 Protection 4 | . . . . 11 11 11 9 8 6 7 . 6 . 5 1 6 6 9 2 4 4 4 . 4 4 6 4 2 3 3 4 3 Energy Gun 1 | . 21 28 . . . . . . . 5 . 4 . . . . . . . . . . . . . . . . . . . . Impact Weapon 5 | . . . 20 22 22 22 21 22 14 3 11 . . 5 6 6 6 6 5 5 5 5 5 3 . . . . . 1 . . Slashing Weapon 9 | . . . . . . . . . 10 12 11 14 15 15 11 13 13 10 11 10 10 10 6 6 10 10 14 12 11 12 12 9 Piercing Weapon 4 | . . . . . . . . . . . . . 6 6 6 6 6 6 4 5 5 5 9 9 9 9 5 6 10 6 8 9 Peak Build Rating 204 | 6 10 10 25 23 25 24 32 34 38 44 44 75 68 68 77 78 78 85 94 96 100 113 111 131 130 152 153 147 169 189 200 204 Average Rating 87 | 5 7 10 21 23 23 24 26 31 34 34 38 59 66 66 73 77 78 76 89 93 96 102 108 123 125 133 143 141 159 179 197 197 On Entrance 76 | . 6 10 10 23 23 24 24 32 32 35 29 41 63 68 67 77 78 78 79 92 96 97 105 108 131 115 152 147 143 159 188 200 Avg Prop Armor Cover (%) 10 | . . . . . . . . . . . 10 15 . . 6 6 . 9 . . . . . . . . . 6 . . . . Naked Turns . | . . . . . . . . . . . . . . . . . . . . . . . . . . . . . . . . . Heaviest Build 199 | 13 16 15 56 56 56 56 63 70 71 66 66 72 64 71 71 75 75 93 99 100 105 125 112 157 175 175 162 156 167 193 193 199 Greatest Support 240 | 40 40 20 80 80 80 80 80 80 88 88 100 170 170 170 170 150 150 180 165 156 156 151 151 157 157 187 187 187 240 240 240 240 Greatest Overweight (x) 5 | . . . . . . . . 3 . . 5 3 . . . . . . . . . . . 1 1 1 . . . 1 . . Average Overweight (x) . | . . . . . . . . . . . . . . . . . . . . . . . . . . . . . . . . . Largest Inventory Capacity 25 | 8 8 8 20 20 20 20 20 20 20 20 20 20 20 20 20 20 20 20 20 20 20 20 20 25 25 25 25 25 25 25 25 25 Average Capacity 20 | 7 8 8 16 20 20 20 20 20 20 20 20 20 20 20 20 20 20 20 20 20 20 20 20 22 25 25 25 25 25 25 25 25 Most Carried 25 | 4 8 8 14 14 17 16 18 20 20 20 20 20 20 20 20 20 20 20 20 20 20 20 20 25 25 25 25 25 25 25 25 25 Average Carried 20 | 2 7 8 9 14 15 16 17 19 19 19 19 18 19 19 19 19 20 19 19 19 19 19 20 21 24 24 24 24 23 24 24 22 Final Capacity 25 | 8 8 8 20 20 20 20 20 20 20 20 20 20 20 20 20 20 20 20 20 20 20 20 20 25 25 25 25 25 25 25 25 25 Final Carried 25 | 4 8 8 14 14 16 16 18 20 20 20 19 20 20 20 19 20 20 20 20 20 20 20 20 25 25 25 25 22 25 25 25 18 Class Distribution -------------------- 29% | Gladiator 27% | Scavenger-Gladiator 13% | Mutant 10% | Commander-Gladiator 10% | Hacker-Gladiator 6% | Scavenger-Mutant Dominant Class ---------------- Mutant | -10/Materials Scavenger-Mutant | -10/Mines Mutant | -9/Materials Mutant | -9/Mines Mutant | -9/Exiles Mutant | -8/Mines Mutant | -8/Materials Mutant | -8/Garrison Gladiator | -8/Materials Scavenger-Mutant | -8/Garrison Scavenger-Gladiator | -7/Factory Scavenger-Gladiator | -7/Garrison Scavenger-Gladiator | -7/Factory Scavenger-Gladiator | -7/Garrison Scavenger-Gladiator | -6/Factory Scavenger-Gladiator | -6/Waste Scavenger-Gladiator | -6/Factory Assassin | -6/DSF Gladiator | -5/Factory Gladiator | -5/Upper Caves Gladiator | -5/Upper Caves Gladiator | -5/Warlord Gladiator | -4/Proximity Caves Hacker-Gladiator | -4/Factory Commander-Gladiator | -4/Extension Commander-Gladiator | -4/Cetus Commander-Gladiator | -4/Archives Commander-Gladiator | -4/Hub_04(d) Scavenger-Gladiator | -3/Research Hacker-Gladiator | -2/Research Scavenger-Gladiator | -1/Access Scavenger-Mutant | -1/Command Resources | -11 -10 -10 -9 -9 -9 -8 -8 -8 -8 -8 -7 -7 -7 -7 -6 -6 -6 -6 -5 -5 -5 -5 -4 -4 -4 -4 -4 -4 -3 -2 -1 -1 ----------- Run | Yrd Mat Min Mat Min Exi Min Mat Gar Mat Gar Fac Gar Fac Gar Fac Was Fac DSF Fac Upp Upp War Pro Fac Ext Cet Arc Hub Res Res Acc Com Matter Collected 8690 | 249 180 50 250 10 . 10 50 299 582 609 408 534 78 425 134 20 . 274 530 118 437 199 492 514 637 276 146 160 380 387 110 142 Remotely . | . . . . . . . . . . . . . . . . . . . . . . . . . . . . . . . . . Salvage Created 19919 | 20 448 89 594 17 . 14 160 338 1722 1786 1097 1921 99 767 26 . . 414 2107 341 924 513 481 1196 1314 356 316 1040 945 165 298 411 Parts 934 | 3 22 5 29 3 . . 8 26 80 98 53 99 8 42 1 . . 11 75 25 32 23 16 64 65 12 26 43 28 5 14 18 Haulers Intercepted 12 | . 1 . 2 . . . . . 2 . . . . . . . . . 1 . . . . . . . . 1 3 1 1 . Recyclers Shooed 4 | . . . . . . . . . 1 . . . . . . . . . 2 . . . . 1 . . . . . . . . Parts Field Recycled . | . . . . . . . . . . . . . . . . . . . . . . . . . . . . . . . . . Retrieved Matter . | . . . . . . . . . . . . . . . . . . . . . . . . . . . . . . . . . Parts Self-Destructed 11 | . . . . . . . . . . . . . . . . . . . . 5 3 . 3 . . . . . . . . . Prevented 45 | . . . . . . . . . . . . . . . . . . . . 7 28 . 10 . . . . . . . . . Parts Restored 3 | . . . . . . . . . . 1 . 2 . . . . . . . . . . . . . . . . . . . . Broken 3 | . . . . . . . . . . 1 . 2 . . . . . . . . . . . . . . . . . . . . Kills | -11 -10 -10 -9 -9 -9 -8 -8 -8 -8 -8 -7 -7 -7 -7 -6 -6 -6 -6 -5 -5 -5 -5 -4 -4 -4 -4 -4 -4 -3 -2 -1 -1 ------- Run | Yrd Mat Min Mat Min Exi Min Mat Gar Mat Gar Fac Gar Fac Gar Fac Was Fac DSF Fac Upp Upp War Pro Fac Ext Cet Arc Hub Res Res Acc Com Combat Hostiles Destroyed 325 | . 8 2 16 . . . 6 17 29 44 19 33 . 17 1 . . 5 17 10 15 10 9 19 14 4 . 10 7 . 2 11 Melee 126 | . . . 2 . . . 4 4 13 14 13 6 . 6 1 . . 1 16 . . . 1 19 12 . . 6 4 . 2 2 Guns 45 | . 7 2 . . . . . . . 21 . 15 . . . . . . . . . . . . . . . . . . . . AOE 109 | . . . 11 . . . . 12 12 8 . 12 . 9 . . . 1 . 10 9 7 5 . 2 . . 1 1 . . 9 Classes Destroyed 24 | 1 4 . 4 . . . . 1 3 3 . . . . . . . . . 1 . 3 . . 2 . . . . . . 2 Worker 27 | . 1 . 3 1 . . . . 5 . 4 . . . . . . . 1 . . . . . 2 . . 5 2 . . 3 Builder 17 | . . . 2 . . . . . 2 . 2 . 2 . . . . . 1 . . . . 3 3 . . 2 . . . . Tunneler 7 | 1 . . . . . 1 . . . . . . . . . . . . 2 . . . . . 1 . . . 1 . 1 . Hauler 12 | . 1 . 2 . . . . . 2 . . . . . . . . . 1 . . . . . . . . 1 3 1 1 . Recycler 16 | . . . 2 . . . . . 4 . 2 . . . . . . . 6 . . . . 1 . . . . 1 . . . Mechanic 5 | . . . . . . . . . 1 1 . . 1 . . . . . 1 . . . . . . . . . . 1 . . Operator 12 | . . . . . . . . . 1 . . . . . . . . . . . . . . . . . 9 2 . . . . Watcher 10 | . 1 . 1 . . . . . . . . 1 . . . . . . 3 . . . . 1 1 1 . . . . 1 . Swarmer 98 | . . . 11 . . . 3 8 6 12 4 18 . 5 1 . . . 1 10 4 2 5 6 . . . . 2 . . . Saboteur 1 | . . . . . . . . 1 . . . . . . . . . . . . . . . . . . . . . . . . Grunt 93 | . 8 2 . . . . 3 3 17 8 9 4 . 7 . . . 1 3 . 9 3 4 . 2 . . 7 3 . . . Duelist 10 | . . . . . . . . . . 6 1 . . 1 . . . . . . 1 . . . 1 . . . . . . . Protector 1 | . . . . . . . . . . . . . . . . . . . . . . 1 . . . . . . . . . . Sentry 50 | . . . 5 . . . . 5 4 9 2 7 . 1 . . . . 5 . 1 . . 3 7 . . 1 . . . . Specialist 4 | . . . . . . . . . . 1 . . . . . . . 2 . . . . . . . . . 1 . . . . Hunter 20 | . . . . . . . . . 2 5 . 4 . 2 . . . 2 . . . 1 . 1 1 . . 1 1 . . . Programmer 28 | . . . . . . . . . . 3 3 . . 1 . . . . 8 . . . . 9 . . . . . . 2 2 Behemoth 1 | . . . . . . . . . . . . . . . . . . . . . . . . . 1 . . . . . . . Cetus Guard 4 | . . . . . . . . . . . . . . . . . . . . . . . . . . 4 . . . . . . Striker 2 | . . . . . . . . . . . . . . . . . . . . . . 1 . . . . . . 1 . . . Executioner 2 | . . . . . . . . . . . . . . . . . . . . . . 2 . . . . . . . . . . Decomposer 3 | . . . . . . . . . . . . . . . . . . . . . 3 . . . . . . . . . . . Samaritan 1 | . . . . . . . . . . . . . . . . . . . . 1 . . . . . . . . . . . . Thug 3 | . . . . . . . . . . . . . . . . . . . . . . . . . . . . . . . . 3 Savage 1 | . . . . . . . . . . . . . . . . . . . . . . . . . 1 . . . . . . . Guerrilla 1 | . . . . . . . . . . . . . . . . . . . . . . . . . 1 . . . . . . . Wizard 2 | . . . . . . . . . . . . . . . . . . . . . . . . . . . . . . . . 2 Mutant 3 | . . . . . . . . . . . . . . . . . . . . . . . . . . . . . . . . 3 Commander 1 | . . . . . . . . . . . . . . . . . . . . . . . . . . . . . . . . 1 Dragon 1 | . . . . . . . . . . . . . . . . . . . . . . . . . . . . . . . . 1 Best Kill Streak 12 | 1 3 2 5 1 . 1 3 6 5 12 5 9 1 4 1 . . 4 3 5 7 10 9 6 4 4 8 5 4 1 2 9 Combat Bots Only 12 | . 2 2 4 . . . 3 6 3 12 5 9 . 4 1 . . 4 2 5 7 10 9 6 4 3 . 4 3 . 2 9 Max Kills in Single Turn 5 | 1 1 1 4 1 . 1 1 3 3 4 1 5 1 2 1 . . 1 1 4 2 2 5 1 2 2 1 5 1 1 1 3 Gunslinging . | . . . . . . . . . . . . . . . . . . . . . . . . . . . . . . . . . Exploded 5 | . . . 3 . . . . 3 2 4 . 5 . 2 . . . 1 . 4 2 2 5 . 1 . . 1 1 . . 3 Melee 1 | . . . 1 . . . 1 1 1 1 1 1 . 1 1 . . 1 1 . . . 1 1 1 . . 1 1 . 1 1 Uniques/NPCs Destroyed . | . . . . . . . . . . . . . . . . . . . . . . . . . . . . . . . . . Combat | -11 -10 -10 -9 -9 -9 -8 -8 -8 -8 -8 -7 -7 -7 -7 -6 -6 -6 -6 -5 -5 -5 -5 -4 -4 -4 -4 -4 -4 -3 -2 -1 -1 -------- Run | Yrd Mat Min Mat Min Exi Min Mat Gar Mat Gar Fac Gar Fac Gar Fac Was Fac DSF Fac Upp Upp War Pro Fac Ext Cet Arc Hub Res Res Acc Com Hostile Shots Fired 1693 | . 44 7 57 . . . 38 60 68 106 178 230 . 68 30 . . 43 138 16 48 54 23 140 82 15 1 41 107 2 6 91 Missed 534 | . 12 2 20 . . . 4 22 22 33 44 91 . 22 9 . . 12 40 8 12 24 12 39 23 1 . 20 45 . 3 14 Intercepted 8 | . . . . . . . . . . . . . . . . . . . . . . . . . . . . . 2 . . 6 Hits 1159 | . 32 5 37 . . . 34 38 46 73 134 139 . 46 21 . . 31 98 8 36 30 11 101 59 14 1 21 62 2 3 77 Melee 34 | . . . . . . . . 2 . 4 10 . . 1 . . . . . . . . . . 8 . . . . . . 9 Projectile 1125 | . 32 5 37 . . . 34 36 46 69 124 139 . 45 21 . . 31 98 8 36 30 11 101 51 14 1 21 62 2 3 68 AOE 6 | . . . . . . . . . . . . . . . . . . . 1 . . 2 . . . . . . . . . 3 Critical Strikes 66 | . 1 . 1 . . . 3 3 4 3 10 . . 1 2 . . 5 7 . . . . 11 2 3 . . 3 . . 7 Actively Blocked 7 | . . . . . . . . . . 1 . . . . . . . . . . . . . . . . . . . . . 6 Part Disruptions 10 | . . . . . . . . . . . . 1 . . . . . 1 . . . . . 1 . . . 1 . . . 6 Actively Blocked 7 | . . . . . . . . . . . . . . . . . . . . . . . . 1 . . . . . . . 6 Damage Taken 18913 | . 375 68 367 . . . 380 511 711 1075 1878 1741 20 720 396 . . 852 1816 70 511 1072 96 795 1150 283 11 680 742 46 25 2522 Core 1746 | . 48 . . . . . 19 97 127 57 304 120 . 83 53 . . 51 153 15 25 121 9 47 130 26 . 51 34 17 . 159 Absorbed by Shields 3347 | . . . . . . . 64 116 . . . . . . . . . . 297 54 152 107 94 842 626 176 10 87 377 45 25 275 Redirected to Shielding 5 | . . . . . . . . . . 5 . . . . . . . . . . . . . . . . . . . . . . Ignored by Resistances 507 | . . . . . . . . . . . . . . . . . . . . . . . . 231 . . . . 14 . 18 244 Regen/Repaired (Parts) 190 | . . . . . . . . . . . . . . . . . . . . . . 5 . . . . . . 158 27 . . Core Remaining (%) 77 | 100 . 80 . . . 100 . . . 45 . . . 27 . . . 87 . . . . 67 . . . . 77 97 98 . . Volleys Fired 279 | 3 46 4 7 . . . . 20 19 19 3 13 . 21 2 . . 9 1 7 23 22 5 . 22 9 . 6 7 . . 11 Largest 2 | 2 2 2 1 . . . . 1 1 1 1 1 . 1 1 . . 1 1 1 1 1 1 . 1 1 . 1 1 . . 1 Hottest 115 | 40 115 105 30 . . . . 36 36 65 43 43 . 43 5 . . 43 5 43 43 50 43 . 46 46 . 46 46 . . 80 Shots Fired 500 | 6 92 8 7 . . . . 20 19 120 3 80 . 21 2 . . 9 1 7 23 22 5 . 21 9 . 6 7 . . 12 Gun 281 | 6 92 8 . . . . . . . 108 . 67 . . . . . . . . . . . . . . . . . . . . Cannon 1 | . . . . . . . . . . . . . . . . . . . . . . 1 . . . . . . . . . . Launcher 215 | . . . 7 . . . . 20 19 12 3 13 . 21 . . . 9 . 7 23 21 5 . 21 9 . 6 7 . . 12 Special 3 | . . . . . . . . . . . . . . . 2 . . . 1 . . . . . . . . . . . . . Kinetic 32 | 6 26 . . . . . . . . . . . . . . . . . . . . . . . . . . . . . . . Thermal 249 | . 66 8 . . . . . . . 108 . 67 . . . . . . . . . . . . . . . . . . . . Explosive 44 | . . . 7 . . . . 20 2 7 . 5 . . . . . . . . . . . . . . . . . . . 3 Electromagnetic 171 | . . . . . . . . . 17 5 3 8 . 21 . . . 9 . 7 23 21 5 . 21 9 . 6 7 . . 9 Entropic 1 | . . . . . . . . . . . . . . . . . . . . . . 1 . . . . . . . . . . Robot Hit Streak 20 | 5 10 6 4 . . . . 5 4 18 7 16 . 20 5 . . 10 11 16 20 4 9 . 4 5 . 3 6 . . 3 Robot Miss Streak 5 | . 3 1 1 . . . . 2 2 2 1 2 . 1 . . . . . . 2 1 . . 1 2 . 1 1 . . 5 Penetration Max . | . . . . . . . . . . . . . . . . . . . . . . . . . . . . . . . . . Secondary Targets . | . . . . . . . . . . . . . . . . . . . . . . . . . . . . . . . . . Autonomous 171 | . . . . . . . . . . 102 . 69 . . . . . . . . . . . . . . . . . . . . Shots Hit Robots 870 | 5 52 7 30 1 . 1 13 20 48 130 57 102 3 31 6 . . 15 103 6 19 8 6 59 46 5 10 31 28 4 6 18 Core Hits 573 | 2 21 4 16 1 . . 3 21 43 57 22 58 2 20 1 . . 13 34 11 21 30 10 26 32 12 5 25 16 1 4 62 Critical Kills 4 | . . . . . . . 1 2 1 . . . . . . . . . . . . . . . . . . . . . . . Critical Parts Destroyed 19 | . 1 . 7 . . . 2 . 4 1 2 . . . . . . . 1 . . . . . . . . . 1 . . . Critical Strikes 80 | . 6 . 8 . . . 3 2 9 4 9 3 . 2 . . . . 17 . . 1 . 6 4 . . 3 2 . . 1 Burn 5 | . 5 . . . . . . . . . . . . . . . . . . . . . . . . . . . . . . . Destroy 1 | . 1 . . . . . . . . . . . . . . . . . . . . . . . . . . . . . . . Smash 23 | . . . 8 . . . 3 2 5 1 2 . . . . . . . 1 . . . . . . . . . 1 . . . Sever 40 | . . . . . . . . . 4 3 7 3 . . . . . . 15 . . 1 . 1 2 . . 3 . . . 1 Impale 11 | . . . . . . . . . . . . . . 2 . . . . 1 . . . . 5 2 . . . 1 . . . Melee Attacks 990 | . . . 31 1 . 1 30 29 57 73 108 64 10 38 10 . . 17 160 2 8 4 8 130 53 . 14 50 42 6 16 28 Impact 201 | . . . 31 1 . 1 30 29 29 10 28 . . 6 1 . . 2 24 . 1 . . 6 . . . . 2 . . . Slashing 548 | . . . . . . . . . 28 63 80 64 10 12 8 . . 11 106 1 7 3 6 27 24 . 12 30 19 1 13 23 Piercing 240 | . . . . . . . . . . . . . . 20 1 . . 4 30 1 . 1 2 96 29 . 2 20 21 5 3 5 Sneak Attacks 121 | . . . 11 1 . 1 1 . 12 6 11 1 3 . . . . . 20 1 3 . 1 7 6 . 10 5 13 2 2 4 Combat Hostiles 9 | . . . . . . . . . 3 . . 1 . . . . . . 2 . . . 1 . . . . 1 . . . 1 Follow-up Attacks 166 | . . . 5 . . . 5 6 7 6 14 3 . 8 1 . . 10 39 . . 1 . 22 15 . 1 10 6 1 1 5 Damage Inflicted 53017 | 62 688 90 2250 111 . 107 640 1358 3628 4813 3381 5428 295 1699 184 . . 1086 4950 540 1663 1664 689 2801 2994 854 1289 2600 2033 297 472 4351 Guns 4852 | 62 686 90 . . . . . . . 2420 . 1594 . . . . . . . . . . . . . . . . . . . . Cannons . | . . . . . . . . . . . . . . . . . . . . . . . . . . . . . . . . . Explosions 18160 | . . . 718 . . . . 832 1422 794 313 1366 . 879 . . . 726 . 435 1398 1611 605 . 1130 854 . 1106 579 . . 3392 Melee 29986 | . . . 1532 111 . 107 640 526 2206 1599 3058 2468 295 820 184 . . 360 4950 105 265 53 84 2801 1864 . 1289 1487 1454 297 472 959 Ramming 19 | . 2 . . . . . . . . . 10 . . . . . . . . . . . . . . . . 7 . . . . Kinetic 166 | 62 104 . . . . . . . . . . . . . . . . . . . . . . . . . . . . . . . Thermal 5741 | . 582 90 . . . . . . 205 2489 . 1686 . 75 . . . . . 51 32 413 48 . . . . 70 . . . . Explosive 5482 | . . . 718 . . . . 832 310 607 . 847 . . . . . . . . . . . . . . . . . . . 2168 Electromagnetic 11623 | . . . . . . . . . 907 118 313 427 . 804 . . . 726 . 384 1366 1198 557 . 1130 854 . 1036 579 . . 1224 Impact 6839 | . . . 1532 111 . 107 640 526 1326 143 838 . . 247 53 . . 57 989 . . . . 141 . . . . 129 . . . Slashing 17581 | . . . . . . . . . 880 1456 2220 2468 295 347 131 . . 212 3302 105 265 30 . 623 963 . 1211 933 849 40 472 779 Piercing 5566 | . . . . . . . . . . . . . . 226 . . . 91 659 . . 23 84 2037 901 . 78 554 476 257 . 180 Highest Corruption 32 | . . . . . . . . . 3 . 6 2 4 6 1 1 1 11 4 . . . 10 9 10 32 32 11 . 1 . 3 Average Corruption 6 | . . . . . . . . . 2 . 4 1 2 5 1 1 1 1 3 . . . 4 7 9 20 20 8 . 1 . 2 Corruption Purged 49 | . . . . . . . . . 3 . 5 . . . . . . . 7 . . . 6 . . . 21 7 . . . . Corruption Blocked . | . . . . . . . . . . . . . . . . . . . . . . . . . . . . . . . . . Effects 333 | . . . . . . . . . 2 . 18 17 9 28 . 1 . 3 17 . . . 19 51 77 30 28 19 . . . 14 Message Errors 78 | . . . . . . . . . . . 9 3 3 5 . 1 . . 4 . . . 5 7 12 8 9 7 . . . 5 Matter Fused 85 | . . . . . . . . . 1 . 4 4 . 8 . . . 1 5 . . . 5 13 23 9 6 3 . . . 3 Heat Flow Errors 44 | . . . . . . . . . 1 . . . 2 5 . . . 1 2 . . . 2 11 7 4 6 1 . . . 2 Energy Discharges 33 | . . . . . . . . . . . . 2 1 4 . . . . 1 . . . 2 10 5 1 1 4 . . . 2 Parts Rejected 4 | . . . . . . . . . . . 1 . . . . . . . . . . . . . 1 1 . 1 . . . . Parts Fused 7 | . . . . . . . . . . . . 1 . . . . . . 1 . . . 1 . 3 . . 1 . . . . Data Loss (minor) 47 | . . . . . . . . . . . 2 2 1 3 . . . 1 3 . . . 3 8 14 3 4 2 . . . 1 Data Loss (major) 17 | . . . . . . . . . . . . 2 2 . . . . . 1 . . . . 2 6 3 1 . . . . . Misfires 1 | . . . . . . . . . . . . . . . . . . . . . . . . . . . . . . . . 1 Alerts 16 | . . . . . . . . . . . 2 3 . 3 . . . . . . . . 1 . 5 1 1 . . . . . Weapon Failures 1 | . . . . . . . . . . . . . . . . . . . . . . . . . 1 . . . . . . . Overload Shots . | . . . . . . . . . . . . . . . . . . . . . . . . . . . . . . . . . Overflow Damage 5415 | . . . 619 . . 87 109 41 650 240 731 123 65 70 61 . . . 588 79 261 . 23 344 167 . 514 54 186 54 85 264 Projectiles . | . . . . . . . . . . . . . . . . . . . . . . . . . . . . . . . . . Explosions 417 | . . . 53 . . . . 30 11 14 . 77 . 5 . . . . . 5 11 . 23 . 36 . . 5 . . . 147 Melee 4998 | . . . 566 . . 87 109 11 639 226 731 46 65 65 61 . . . 588 74 250 . . 344 131 . 514 49 186 54 85 117 Knockbacks 16 | . . . 4 . . . 3 . 3 . 3 . . . 1 . . . 1 . . . . . . . . . 1 . . . Impact 15 | . . . 4 . . . 2 . 3 . 3 . . . 1 . . . 1 . . . . . . . . . 1 . . . Kinetic . | . . . . . . . . . . . . . . . . . . . . . . . . . . . . . . . . . Secondary 1 | . . . . . . . 1 . . . . . . . . . . . . . . . . . . . . . . . . . Self-Inflicted Damage 897 | . . . . . . . . 6 120 . . 98 . 10 . . . . . . . 34 . . 33 . . 98 31 . . 467 Shots 43 | . . . . . . . . 1 6 . . 4 . 1 . . . . . . . 2 . . 2 . . 1 1 . . 25 Rammed 5 | . 1 . . . . . . . . . 3 . . . . . . . . . . . . . . . . 1 . . . . Targets Rammed 5 | . 1 . . . . . . . . . 3 . . . . . . . . . . . . . . . . 1 . . . . Kicked . | . . . . . . . . . . . . . . . . . . . . . . . . . . . . . . . . . Crushed . | . . . . . . . . . . . . . . . . . . . . . . . . . . . . . . . . . Highest Temperature 278 | . 132 51 . . . . 22 6 169 64 10 21 124 167 . . . 236 187 . 16 12 185 239 247 278 262 273 226 . . 270 Average Temperature 70 | . 35 33 . . . . 16 2 57 27 5 7 63 65 . . . 89 83 . 8 6 94 100 90 81 120 113 118 . . 65 Received Heat Transfer 3258 | . 228 39 72 . . . 216 202 270 261 519 285 . 111 . . . 144 136 . 154 4 16 24 111 . . 98 14 4 . 350 Effects 3 | . . . . . . . . . . . . . . . . . . . . . . . . . . . 1 . . . . 2 Energy Bleed 2 | . . . . . . . . . . . . . . . . . . . . . . . . . . . 1 . . . . 1 Interference 1 | . . . . . . . . . . . . . . . . . . . . . . . . . . . . . . . . 1 Siege Activations . | . . . . . . . . . . . . . . . . . . . . . . . . . . . . . . . . . Martial Activations . | . . . . . . . . . . . . . . . . . . . . . . . . . . . . . . . . . Shielding Activations . | . . . . . . . . . . . . . . . . . . . . . . . . . . . . . . . . . Robots Disrupted 1 | . . . . . . . . . . . . . . . . . . . . . . 1 . . . . . . . . . . Combat Hostiles 1 | . . . . . . . . . . . . . . . . . . . . . . 1 . . . . . . . . . . Robots Corrupted 56 | . . . 8 . . 1 2 1 8 1 6 . . 2 . . . 3 2 . 6 3 3 . . 4 . 3 2 . . 1 Combat Hostiles 44 | . . . 3 . . . 2 1 4 1 6 . . 2 . . . 3 1 . 6 3 3 . . 4 . 3 2 . . . Parts Fried 101 | . . . 14 . . 1 1 . 14 . 6 . . 4 1 . . 6 4 1 13 12 2 . 4 2 . 5 8 . . 3 Impact Corruptions 67 | . . . 20 . . 3 7 1 15 1 11 . . . 1 . . . 6 . . . . . . . . . 2 . . . Robots Melted 1 | . 1 . . . . . . . . . . . . . . . . . . . . . . . . . . . . . . . Combat Hostiles 1 | . 1 . . . . . . . . . . . . . . . . . . . . . . . . . . . . . . . Parts Melted 10 | . 3 1 . . . . . . . 3 . . . . . . . . 1 . . . . . 1 . . . 1 . . . Heat Transferred 8432 | . 1927 211 . . . . . . 350 3134 . 2135 . 100 . . . . . . 50 375 50 . . . . 100 . . . . Parts Sabotaged 5 | . . . . . . . . 5 . . . . . . . . . . . . . . . . . . . . . . . . Parts Stolen . | . . . . . . . . . . . . . . . . . . . . . . . . . . . . . . . . . Parts Stripped . | . . . . . . . . . . . . . . . . . . . . . . . . . . . . . . . . . Power Chain Reactions 32 | . . . . . . . . . 7 1 . 1 . 2 . . . . . 3 2 11 1 . 1 . . 1 . . . 2 Alert | -11 -10 -10 -9 -9 -9 -8 -8 -8 -8 -8 -7 -7 -7 -7 -6 -6 -6 -6 -5 -5 -5 -5 -4 -4 -4 -4 -4 -4 -3 -2 -1 -1 ------- Run | Yrd Mat Min Mat Min Exi Min Mat Gar Mat Gar Fac Gar Fac Gar Fac Was Fac DSF Fac Upp Upp War Pro Fac Ext Cet Arc Hub Res Res Acc Com Maximum Alert Level 5 | . . . . . . . . 4 4 5 4 5 4 5 4 1 . 1 1 . . . . . 2 2 1 5 4 2 . . Low Security (%) 34 | 100 100 100 100 100 . 100 100 4 . . . . . . . 20 100 40 13 . . . . 100 74 . 59 33 . 16 100 100 Level 1 17 | . . . . . . . . 11 . . . . . . . 79 . 59 86 . . . . . 15 78 40 16 . 59 . . Level 2 4 | . . . . . . . . 34 8 . . . . . . . . . . . . . . . 9 21 . 12 . 24 . . Level 3 12 | . . . . . . . . 23 58 13 . 11 . 5 96 . . . . . . . . . . . . 8 96 . . . Level 4 16 | . . . . . . . . 26 33 19 100 13 100 41 3 . . . . . . . . . . . . 15 3 . . . Level 5 13 | . . . . . . . . . . 67 . 74 . 53 . . . . . . . . . . . . . 13 . . . . High Security . | . . . . . . . . . . . . . . . . . . . . . . . . . . . . . . . . . Max Security . | . . . . . . . . . . . . . . . . . . . . . . . . . . . . . . . . . Sterilizations 1 | . . . . . . . . . . . . . . . . . . 1 . . . . . . . . . . . . . . Peak Influence 3029 | 5 61 56 178 69 . 5 106 1494 1353 3029 1589 2844 1493 2093 1110 379 115 353 369 . . . . 133 638 448 274 1956 1116 571 136 40 Initial 1589 | . . 6 . 64 . . . 62 728 872 1589 974 1493 857 1098 379 115 80 184 . . . . 51 55 348 134 17 1026 571 136 . Average 748 | . 19 16 76 30 . . 24 795 1005 1976 1274 1978 1330 1646 1045 270 115 206 270 . . . . 70 159 349 169 629 1004 310 42 4 Influence Increases 18203 | 5 301 50 500 5 . 5 158 1442 1251 2267 643 1980 70 1336 213 . . 313 849 220 345 320 215 620 1162 354 250 2410 504 226 94 95 Destroy 0b10 Robot/C 8220 | . 160 40 320 . . . 120 420 720 1020 380 900 20 580 140 . . 200 340 200 300 180 180 380 520 160 80 640 140 . 40 40 Destroy 0b10 Robot/NC 640 | 5 15 . 50 5 . 5 . . 95 5 40 35 15 . 10 . . 5 75 . . 5 . 25 45 10 45 75 35 10 15 15 Destroy Leader 1156 | . 54 10 86 . . . 20 10 174 40 90 40 10 60 24 . . 20 108 20 30 . 20 102 54 . . 122 36 2 14 10 Allied During Kill 1974 | . . . . . . . . 33 63 46 . 177 18 125 31 . . 13 . . . . . . 464 170 125 709 . . . . Successful Hack 236 | . 10 . 7 . . . . 21 5 37 15 21 . 14 . . . . 5 . . . . 24 35 8 . . 22 8 4 . Disable Machine 720 | . . . 15 . . . . 30 105 45 . 15 . 60 . . . 30 60 . . . . 15 30 . . 300 . . . 15 Anti-Garrison Action 3400 | . . . . . . . . 850 . 850 . 600 . 350 . . . . 200 . . . . . . . . 150 200 200 . . Destroy Structure 1122 | . 2 . 22 . . . 3 78 59 179 28 87 7 117 8 . . . 46 . . . . 74 14 6 . 324 26 6 21 15 Partial Spotted 15 | . . . . . . . . . . . . 15 . . . . . . . . . . . . . . . . . . . . Lose Combat Pursuer 720 | . 60 . . . . . 15 . 30 45 90 90 . 30 . . . 45 15 . 15 135 15 . . . . 90 45 . . . Influence Decreases 18203 | 5 283 68 335 170 . 5 62 44 1402 581 2280 528 1689 468 1223 918 50 75 837 366 498 147 371 589 653 641 536 504 1444 1015 321 95 Entered New Map 9464 | . . 12 . 101 . . . 34 766 471 1440 418 1351 368 995 704 50 35 169 136 42 66 239 32 59 275 202 33 930 445 91 . Time Decay 7441 | 5 283 56 325 69 . 5 62 . 556 . 580 . 318 . 198 214 . . 658 230 446 51 132 557 476 326 294 231 494 550 230 95 Lost Part 370 | . . . 10 . . . . 10 . 30 110 90 . . 10 . . 20 10 . 10 10 . . 20 . . 20 20 . . . Lost Ally 778 | . . . . . . . . . 80 80 . 20 20 100 20 . . 20 . . . 20 . . 98 40 40 220 . 20 . . Purge Threat 150 | . . . . . . . . . . . 150 . . . . . . . . . . . . . . . . . . . . . Squads Dispatched 71 | . 4 . 1 . . . . . 9 . 9 . 1 . 2 . . 1 6 . . . . 7 2 . . 10 11 3 3 2 Investigation 16 | . . . . . . . . . 3 . . . . . 1 . . . 1 . . . . 1 1 . . 1 7 1 . . Extermination 17 | . . . . . . . . . . . 3 . . . . . . . 5 . . . . 5 . . . 1 . . 2 1 Reinforcement 29 | . 4 . 1 . . . . . 6 . 2 . . . . . . 1 . . . . . 1 1 . . 5 4 2 1 1 Assault 8 | . . . . . . . . . . . 3 . 1 . 1 . . . . . . . . . . . . 3 . . . . Garrison 1 | . . . . . . . . . . . 1 . . . . . . . . . . . . . . . . . . . . . Intercept . | . . . . . . . . . . . . . . . . . . . . . . . . . . . . . . . . . Searches Triggered . | . . . . . . . . . . . . . . . . . . . . . . . . . . . . . . . . . Construction Impeded 5 | . . . . . . . . . 3 . 1 . . . . . . . . . . . . . 1 . . . . . . . Haulers Reinforced 7 | . . . . . . . . . . . . . . . . . . . . . . . . . . . . 2 3 1 1 . Active Scanning Responses . | . . . . . . . . . . . . . . . . . . . . . . . . . . . . . . . . . Cargo Convoy Interrupts . | . . . . . . . . . . . . . . . . . . . . . . . . . . . . . . . . . Stealth | -11 -10 -10 -9 -9 -9 -8 -8 -8 -8 -8 -7 -7 -7 -7 -6 -6 -6 -6 -5 -5 -5 -5 -4 -4 -4 -4 -4 -4 -3 -2 -1 -1 --------- Run | Yrd Mat Min Mat Min Exi Min Mat Gar Mat Gar Fac Gar Fac Gar Fac Was Fac DSF Fac Upp Upp War Pro Fac Ext Cet Arc Hub Res Res Acc Com Distress Signals 34 | . 1 . 1 . . . . . 6 . . 1 . . . . . . 1 . . 3 . . 3 2 . 1 5 8 1 1 Communications Jammed 45 | . . . . . . . . . . . 9 . . . . . . . 1 . . . . 5 4 . . 26 . . . . Distress Signals 40 | . . . . . . . . . . . 8 . . . . . . . . . . . . 5 4 . . 23 . . . . Times Spotted 623 | . 23 2 24 . . . 7 30 54 50 33 48 1 27 10 . . 11 31 10 16 48 10 24 28 13 4 36 24 11 4 44 Peak Tracking Total 36 | . 4 1 4 . . . 3 6 5 6 6 11 1 7 3 . . 6 4 4 4 16 5 3 5 5 2 8 4 4 2 36 Tactical Retreats 31 | . 4 . . . . . 1 . 1 3 3 3 . 2 . . . 2 1 . 1 4 1 . . . . 3 2 . . . Traps | -11 -10 -10 -9 -9 -9 -8 -8 -8 -8 -8 -7 -7 -7 -7 -6 -6 -6 -6 -5 -5 -5 -5 -4 -4 -4 -4 -4 -4 -3 -2 -1 -1 ------- Run | Yrd Mat Min Mat Min Exi Min Mat Gar Mat Gar Fac Gar Fac Gar Fac Was Fac DSF Fac Upp Upp War Pro Fac Ext Cet Arc Hub Res Res Acc Com Traps Triggered 37 | . . . . . . . . 2 5 3 . 9 3 4 1 . . . . . . . . 5 4 . . 1 . . . . Indirectly 3 | . . . . . . . . . . . . . . 3 . . . . . . . . . . . . . . . . . . Trap Hack Attempts . | . . . . . . . . . . . . . . . . . . . . . . . . . . . . . . . . . Triggered . | . . . . . . . . . . . . . . . . . . . . . . . . . . . . . . . . . Disarmed . | . . . . . . . . . . . . . . . . . . . . . . . . . . . . . . . . . Reprogrammed . | . . . . . . . . . . . . . . . . . . . . . . . . . . . . . . . . . Reused . | . . . . . . . . . . . . . . . . . . . . . . . . . . . . . . . . . Traps Extracted . | . . . . . . . . . . . . . . . . . . . . . . . . . . . . . . . . . Installed . | . . . . . . . . . . . . . . . . . . . . . . . . . . . . . . . . . Triggered . | . . . . . . . . . . . . . . . . . . . . . . . . . . . . . . . . . Machines | -11 -10 -10 -9 -9 -9 -8 -8 -8 -8 -8 -7 -7 -7 -7 -6 -6 -6 -6 -5 -5 -5 -5 -4 -4 -4 -4 -4 -4 -3 -2 -1 -1 ---------- Run | Yrd Mat Min Mat Min Exi Min Mat Gar Mat Gar Fac Gar Fac Gar Fac Was Fac DSF Fac Upp Upp War Pro Fac Ext Cet Arc Hub Res Res Acc Com Machines Disabled 85 | . 1 . 1 . . . . 9 7 15 . 8 . 10 . . . 2 4 . . 1 . 1 4 . . 21 . . . 1 Max in Single Turn 5 | . 1 . 1 . . . . 2 2 2 . 1 . 2 . . . 1 1 . . 1 . 1 1 . . 5 . . . 1 Garrison Access 5 | . . . . . . . . . . . . . . . . . . . 1 . . . . . . . . 1 1 2 . . Garrison Relay 20 | . . . . . . . . 5 . 6 . 5 . 4 . . . . . . . . . . . . . . . . . . Phase Generator 4 | . . . . . . . . 1 . 1 . 1 . 1 . . . . . . . . . . . . . . . . . . Network Hub 1 | . . . . . . . . . . . . . . . . . . . . . . . . . . . . 1 . . . . Machines Repaired . | . . . . . . . . . . . . . . . . . . . . . . . . . . . . . . . . . Machines Dismantled . | . . . . . . . . . . . . . . . . . . . . . . . . . . . . . . . . . Machines Sabotaged . | . . . . . . . . . . . . . . . . . . . . . . . . . . . . . . . . . Overloaded Fab Kills . | . . . . . . . . . . . . . . . . . . . . . . . . . . . . . . . . . Hacking | -11 -10 -10 -9 -9 -9 -8 -8 -8 -8 -8 -7 -7 -7 -7 -6 -6 -6 -6 -5 -5 -5 -5 -4 -4 -4 -4 -4 -4 -3 -2 -1 -1 --------- Run | Yrd Mat Min Mat Min Exi Min Mat Gar Mat Gar Fac Gar Fac Gar Fac Was Fac DSF Fac Upp Upp War Pro Fac Ext Cet Arc Hub Res Res Acc Com Machines Accessed 74 | . 2 . 4 . 1 . 1 2 2 3 4 3 5 1 2 . 1 . 8 1 . 2 . 7 13 1 . 1 4 2 3 1 Terminals 55 | . 2 . 3 . . . . 2 1 3 2 3 3 1 2 . 1 . 6 . . . . 5 13 1 . 1 1 1 3 1 Fabricators 5 | . . . . . . . . . . . 1 . . . . . . . 1 . . . . 2 . . . . 1 . . . Repair Stations 1 | . . . . . . . . . . . . . . . . . . . . . . . . . . . . . 1 . . . Recycling Units . | . . . . . . . . . . . . . . . . . . . . . . . . . . . . . . . . . Scanalyzers 1 | . . . 1 . . . . . . . . . . . . . . . . . . . . . . . . . . . . . Garrison Access 8 | . . . . . . . 1 . 1 . 1 . 2 . . . . . 1 . . . . . . . . . 1 1 . . Total Hacks 160 | . 6 . 7 . 1 . 1 6 6 4 9 4 8 1 5 . 1 . 12 1 . 2 . 22 26 4 . 1 10 18 4 1 Successful 74 | . 3 . 3 . 1 . 1 2 2 3 4 3 2 1 1 . 1 . 3 1 . 2 . 13 11 1 . 1 4 8 3 . Failed 86 | . 3 . 4 . . . . 4 4 1 5 1 6 . 4 . . . 9 . . . . 9 15 3 . . 6 10 1 1 Catastrophic 17 | . 1 . 2 . . . . 1 1 . . . 2 . . . . . 4 . . . . 3 . . . . 1 1 . 1 Database Lockouts . | . . . . . . . . . . . . . . . . . . . . . . . . . . . . . . . . . Manual 73 | . 6 . 5 . 1 . . 2 3 . 5 . 6 . 2 . . . 7 . . . . 15 3 1 . 1 4 9 . 3 Terminals 129 | . 6 . 5 . . . . 6 3 4 6 4 6 1 5 . 1 . 9 . . . . 18 26 4 . 1 4 15 4 1 Fabricators 8 | . . . . . . . . . . . 2 . . . . . . . 1 . . . . 4 . . . . 1 . . . Repair Stations 1 | . . . . . . . . . . . . . . . . . . . . . . . . . . . . . 1 . . . Recycling Units . | . . . . . . . . . . . . . . . . . . . . . . . . . . . . . . . . . Scanalyzers 2 | . . . 2 . . . . . . . . . . . . . . . . . . . . . . . . . . . . . Garrison Access 16 | . . . . . . . 1 . 3 . 1 . 2 . . . . . 2 . . . . . . . . . 4 3 . . Terminal Hacks 46 | . 1 . 1 . 1 . . 2 . 3 1 3 1 1 1 . 1 . 1 1 . 2 . 5 10 1 . . 1 6 3 . Record 1 | . . . . . . . . . . . . . . . . . . . . . . . . . . . . . . 1 . . Part Schematic 2 | . . . 1 . . . . . . . . . . . . . . . . . . . . 1 . . . . . . . . Open Door 20 | . . . . . . . . 1 . 1 . 1 . . . . . . . 1 . 2 . . 10 1 . . . . 3 . Open DSF 1 | . . . . . . . . . . . . . . . . . 1 . . . . . . . . . . . . . . . Level Access Points 2 | . . . . . . . . . . . . . . . . . . . . . . . . . . . . . 1 1 . . Branch Access Points 2 | . . . . . . . . . . . . . . . . . . . 1 . . . . 1 . . . . . . . . Emergency Access Points 4 | . . . . . . . . 1 . 1 . 1 . 1 . . . . . . . . . . . . . . . . . . Terminal Index 1 | . . . . . . . . . . . . . . . 1 . . . . . . . . . . . . . . . . . Unreport Threat 1 | . . . . . . . . . . . 1 . . . . . . . . . . . . . . . . . . . . . Transport Status 1 | . . . . . . . . . . . . . . . . . . . . . . . . . . . . . . 1 . . Recall Reinforcements 1 | . . . . . . . . . . . . . . . . . . . . . . . . 1 . . . . . . . . Hauler Manifests 1 | . . . . . . . . . . . . . . . . . . . . . . . . . . . . . . 1 . . Registered Components 3 | . 1 . . . . . . . . . . . . . . . . . . . . . . 1 . . . . . 1 . . Registered Prototypes 1 | . . . . . . . . . . . . . . . . . . . . . . . . . . . . . . 1 . . Zone Layout 2 | . . . . . . . . . . . . . 1 . . . . . . . . . . 1 . . . . . . . . Patrol Navigation 1 | . . . . . . . . . . . . 1 . . . . . . . . . . . . . . . . . . . . Security Stations 1 | . . . . . . . . . . 1 . . . . . . . . . . . . . . . . . . . . . . Proto ID Catalog 1 | . . . . . 1 . . . . . . . . . . . . . . . . . . . . . . . . . . . Fabricator Hacks 4 | . . . . . . . . . . . 1 . . . . . . . . . . . . 2 . . . . 1 . . . Load Schematic 1 | . . . . . . . . . . . . . . . . . . . . . . . . 1 . . . . . . . . Build 3 | . . . . . . . . . . . 1 . . . . . . . . . . . . 1 . . . . 1 . . . Repair Station Hacks . | . . . . . . . . . . . . . . . . . . . . . . . . . . . . . . . . . Recycling Unit Hacks . | . . . . . . . . . . . . . . . . . . . . . . . . . . . . . . . . . Scanalyzer 2 | . . . 2 . . . . . . . . . . . . . . . . . . . . . . . . . . . . . Insert Component 1 | . . . 1 . . . . . . . . . . . . . . . . . . . . . . . . . . . . . Analyze 1 | . . . 1 . . . . . . . . . . . . . . . . . . . . . . . . . . . . . Garrison Access Hacks 4 | . . . . . . . 1 . 1 . 1 . 1 . . . . . . . . . . . . . . . . . . . Unlock Access 4 | . . . . . . . 1 . 1 . 1 . 1 . . . . . . . . . . . . . . . . . . . Unauthorized Hacks 18 | . 2 . . . . . . . 1 . 1 . . . . . . . 2 . . . . 6 1 . . 1 2 2 . . Terminals 13 | . 2 . . . . . . . 1 . 1 . . . . . . . 1 . . . . 5 1 . . 1 . 1 . . Botnet 12 | . 2 . . . . . . . 1 . 1 . . . . . . . 1 . . . . 5 1 . . . . 1 . . Sabotage 1 | . . . . . . . . . . . . . . . . . . . . . . . . . . . . 1 . . . . Fabricators 1 | . . . . . . . . . . . . . . . . . . . . . . . . 1 . . . . . . . . Haulers 1 | . . . . . . . . . . . . . . . . . . . . . . . . 1 . . . . . . . . Repair Stations 1 | . . . . . . . . . . . . . . . . . . . . . . . . . . . . . 1 . . . Patch 1 | . . . . . . . . . . . . . . . . . . . . . . . . . . . . . 1 . . . Recycling Units . | . . . . . . . . . . . . . . . . . . . . . . . . . . . . . . . . . Scanalyzers . | . . . . . . . . . . . . . . . . . . . . . . . . . . . . . . . . . Garrison Access 3 | . . . . . . . . . . . . . . . . . . . 1 . . . . . . . . . 1 1 . . Jam 3 | . . . . . . . . . . . . . . . . . . . 1 . . . . . . . . . 1 1 . . Data Cores Recovered . | . . . . . . . . . . . . . . . . . . . . . . . . . . . . . . . . . Used . | . . . . . . . . . . . . . . . . . . . . . . . . . . . . . . . . . Hacking Detections 45 | . 1 . 4 . . . . 1 1 1 2 2 3 . 2 . . . 6 . . . . 6 8 2 . . 2 2 1 1 Full Trace Events 5 | . . . . . . . . 1 1 . . . . . 1 . . . . . . . . 1 1 . . . . . . . Feedback Events . | . . . . . . . . . . . . . . . . . . . . . . . . . . . . . . . . . Feedback Blocked . | . . . . . . . . . . . . . . . . . . . . . . . . . . . . . . . . . Robot Schematics Acquired . | . . . . . . . . . . . . . . . . . . . . . . . . . . . . . . . . . Robots Built . | . . . . . . . . . . . . . . . . . . . . . . . . . . . . . . . . . Authchips . | . . . . . . . . . . . . . . . . . . . . . . . . . . . . . . . . . Time 169 | . . . . . . . . . . . . . . . . . . . . . . . . . . . . . 169 . . . Total Robot Build Rating . | . . . . . . . . . . . . . . . . . . . . . . . . . . . . . . . . . Part Schematics Acquired 3 | . . . 2 . . . . . . . . . . . . . . . . . . . . 1 . . . . . . . . Parts Built 4 | . . . . . . . . . . . 2 . . . . . . . . . . . . 2 . . . . . . . . Authchips . | . . . . . . . . . . . . . . . . . . . . . . . . . . . . . . . . . Time 201 | . . . . . . . . . . . 84 . . . . . . . . . . . . 117 . . . . . . . . Total Part Build Rating 22 | . . . . . . . . . . . 8 . . . . . . . . . . . . 14 . . . . . . . . Part Studies Acquired . | . . . . . . . . . . . . . . . . . . . . . . . . . . . . . . . . . Parts Repaired . | . . . . . . . . . . . . . . . . . . . . . . . . . . . . . . . . . Time . | . . . . . . . . . . . . . . . . . . . . . . . . . . . . . . . . . Parts Recycled . | . . . . . . . . . . . . . . . . . . . . . . . . . . . . . . . . . Recycled Matter . | . . . . . . . . . . . . . . . . . . . . . . . . . . . . . . . . . Retrieved Matter . | . . . . . . . . . . . . . . . . . . . . . . . . . . . . . . . . . Retrieved Components . | . . . . . . . . . . . . . . . . . . . . . . . . . . . . . . . . . Parts Scanalyzed 1 | . . . 1 . . . . . . . . . . . . . . . . . . . . . . . . . . . . . Part Schematics Acquired 1 | . . . 1 . . . . . . . . . . . . . . . . . . . . . . . . . . . . . Parts Damaged . | . . . . . . . . . . . . . . . . . . . . . . . . . . . . . . . . . Bothacking | -11 -10 -10 -9 -9 -9 -8 -8 -8 -8 -8 -7 -7 -7 -7 -6 -6 -6 -6 -5 -5 -5 -5 -4 -4 -4 -4 -4 -4 -3 -2 -1 -1 ------------ Run | Yrd Mat Min Mat Min Exi Min Mat Gar Mat Gar Fac Gar Fac Gar Fac Was Fac DSF Fac Upp Upp War Pro Fac Ext Cet Arc Hub Res Res Acc Com Used RIF Installer . | . . . . . . . . . . . . . . . . . . . . . . . . . . . . . . . . . Robots Hacked 4 | . . . . . . . . . . . . . . . 2 . . . 1 . . . . 1 . . . . . . . . Non-combat 4 | . . . . . . . . . . . . . . . 2 . . . 1 . . . . 1 . . . . . . . . Combat . | . . . . . . . . . . . . . . . . . . . . . . . . . . . . . . . . . Robot Hacks Applied 4 | . . . . . . . . . . . . . . . 2 . . . 1 . . . . 1 . . . . . . . . find_chute 4 | . . . . . . . . . . . . . . . 2 . . . 1 . . . . 1 . . . . . . . . Relay Couplers Released 86 | . . . . . . . . 20 . 25 . 22 . 16 . . . . . . . . . . . . . 1 . 2 . . Machine Destruction 86 | . . . . . . . . 20 . 25 . 22 . 16 . . . . . . . . . . . . . 1 . 2 . . Fabnet Peak Effective % . | . . . . . . . . . . . . . . . . . . . . . . . . . . . . . . . . . Robots Rewired 29 | . . . . . . . . 5 . 5 . 4 . . . . . . . . . 5 . . 10 . . . . . . . Allies Hacked . | . . . . . . . . . . . . . . . . . . . . . . . . . . . . . . . . . Hacks Repelled . | . . . . . . . . . . . . . . . . . . . . . . . . . . . . . . . . . Allies | -11 -10 -10 -9 -9 -9 -8 -8 -8 -8 -8 -7 -7 -7 -7 -6 -6 -6 -6 -5 -5 -5 -5 -4 -4 -4 -4 -4 -4 -3 -2 -1 -1 -------- Run | Yrd Mat Min Mat Min Exi Min Mat Gar Mat Gar Fac Gar Fac Gar Fac Was Fac DSF Fac Upp Upp War Pro Fac Ext Cet Arc Hub Res Res Acc Com Total Allies 53 | . . . . . . . . 5 . 5 . 7 . 2 . . . . . . . 5 . . 24 5 . . . . . . Largest Group 19 | . . . . . . . . 5 5 3 . 6 6 5 2 1 1 1 . . . 5 . . 17 19 18 15 . . . . Highest-Rated Group 1202 | . . . . . . . . 182 182 63 . 218 218 182 157 62 62 62 . . . 266 . . 829 1202 1143 914 . . . . Highest-Rated Ally 159 | . . . . . . . . 40 40 31 . 62 62 95 95 62 62 62 . . . 64 . . 159 159 159 96 . . . . Initial Warlord ECA Mod 51 | . . . . . . . . . 12 12 24 24 34 34 42 42 42 42 51 51 51 51 50 50 50 50 50 50 49 48 47 47 Total Orders 10 | . . . . . . . . . . . . . . . . . . . . . . 3 . . . 4 . . . 3 . . STAY 4 | . . . . . . . . . . . . . . . . . . . . . . 2 . . . 2 . . . . . . FOLLOW 3 | . . . . . . . . . . . . . . . . . . . . . . 1 . . . 2 . . . . . . EXPLORE 3 | . . . . . . . . . . . . . . . . . . . . . . . . . . . . . . 3 . . Ally Attacks 666 | . . . . . . . . 18 30 34 . 59 13 39 25 . . 22 . . . 8 . . 193 26 23 176 . . . . Total Damage 18991 | . . . . . . . . 314 721 573 . 1513 334 1130 550 . . 917 . . . 142 . . 4425 634 845 6893 . . . . Kills 113 | . . . . . . . . 4 12 7 . 12 1 12 8 . . 5 . . . . . . 15 5 4 28 . . . . Allies Corrupted . | . . . . . . . . . . . . . . . . . . . . . . . . . . . . . . . . . Allies Melted 2 | . . . . . . . . . . . . . . . . . . . . . . . . . . . . 1 . . . 1 Intel | -11 -10 -10 -9 -9 -9 -8 -8 -8 -8 -8 -7 -7 -7 -7 -6 -6 -6 -6 -5 -5 -5 -5 -4 -4 -4 -4 -4 -4 -3 -2 -1 -1 ------- Run | Yrd Mat Min Mat Min Exi Min Mat Gar Mat Gar Fac Gar Fac Gar Fac Was Fac DSF Fac Upp Upp War Pro Fac Ext Cet Arc Hub Res Res Acc Com Active Infowar (turns) 20546 | . . . 621 . . . . . . . 1662 . 687 97 402 455 4 231 2475 454 1032 1450 1259 2310 2281 726 656 596 612 1577 580 379 Sensors 3922 | . . . . . . . . . . . . . . . . . . . . 452 1008 1148 1256 58 . . . . . . . . Terrain 6389 | . . . . . . . . . . . . . . . 364 455 4 211 1634 . 60 302 1182 1680 . . . . 312 . 185 . Structural 528 | . . . . . . . . . . . 191 . 14 . 323 . . . . . . . . . . . . . . . . . Seismic 620 | . . . 620 . . . . . . . . . . . . . . . . . . . . . . . . . . . . . Machine Analysis 231 | . . . . . . . . . . . . . . . . . . . 227 4 . . . . . . . . . . . . Jamming 15226 | . . . . . . . . . . . 1471 . 673 97 401 455 4 97 2412 4 . . . 2309 2281 726 656 596 508 1577 580 379 ECM 1 | . . . 1 . . . . . . . . . . . . . . . . . . . . . . . . . . . . . Robot Analysis Total . | . . . . . . . . . . . . . . . . . . . . . . . . . . . . . . . . . Derelict Logs Recovered 4 | . . . . 1 . . . . . . . . . . . . . . . 1 . . 2 . . . . . . . . . Drone Launches 3 | . . . . . . . . . . . . . . . . . . . . . . . . . . . . . . 3 . . Drone Recoveries 1 | . . . . . . . . . . . . . . . . . . . . . . . . . . . . . . 1 . . Exploration | -11 -10 -10 -9 -9 -9 -8 -8 -8 -8 -8 -7 -7 -7 -7 -6 -6 -6 -6 -5 -5 -5 -5 -4 -4 -4 -4 -4 -4 -3 -2 -1 -1 ------------- Run | Yrd Mat Min Mat Min Exi Min Mat Gar Mat Gar Fac Gar Fac Gar Fac Was Fac DSF Fac Upp Upp War Pro Fac Ext Cet Arc Hub Res Res Acc Com Turns Passed 33976 | 140 923 207 994 175 450 277 316 1273 1623 2305 1783 2144 711 1529 402 455 4 312 2475 489 1101 1687 1259 2310 2399 726 656 596 1315 1581 580 779 Spaces Moved 17056 | 76 519 157 462 102 263 162 125 610 794 1151 924 1172 412 778 220 276 3 137 1213 261 503 902 634 1086 935 269 343 292 675 889 306 405 Core 2 | 2 . . . . . . . . . . . . . . . . . . . . . . . . . . . . . . . . Treads 16003 | 74 275 . 458 102 263 162 125 610 794 1151 742 708 412 778 220 276 3 137 1213 261 503 902 634 1086 935 269 343 292 675 889 306 405 Legs 405 | . 244 157 4 . . . . . . . . . . . . . . . . . . . . . . . . . . . . . Wheels 646 | . . . . . . . . . . . 182 464 . . . . . . . . . . . . . . . . . . . . Hover . | . . . . . . . . . . . . . . . . . . . . . . . . . . . . . . . . . Flight . | . . . . . . . . . . . . . . . . . . . . . . . . . . . . . . . . . Fastest Speed 50 | 50 120 120 120 170 170 170 170 160 145 145 100 105 160 160 160 160 160 160 160 167 167 166 167 158 158 163 163 160 160 160 160 160 Average Speed 163 | 157 141 120 169 170 170 170 170 170 153 155 148 144 160 160 160 160 160 160 162 167 167 166 167 161 229 192 163 162 160 162 162 160 Slowest Speed 400 | 160 160 120 170 170 170 170 170 400 170 160 160 160 160 160 160 160 160 160 167 167 170 167 167 245 245 242 163 163 160 245 163 160 Overloaded Moves . | . . . . . . . . . . . . . . . . . . . . . . . . . . . . . . . . . Propulsion Burnouts . | . . . . . . . . . . . . . . . . . . . . . . . . . . . . . . . . . Robots Hopped . | . . . . . . . . . . . . . . . . . . . . . . . . . . . . . . . . . Potential Cave-ins . | . . . . . . . . . . . . . . . . . . . . . . . . . . . . . . . . . Cave-ins Triggered . | . . . . . . . . . . . . . . . . . . . . . . . . . . . . . . . . . Exploration Rate (%) 51 | 4 74 35 39 26 60 33 11 93 70 94 25 96 14 84 9 82 . 82 29 51 61 89 76 27 84 64 98 28 20 63 7 15 Regions Visited 32 Branch Regions 13 Pre-discovered Areas 2 | . . . . . . . . . . . . . . . . . . . . 1 . . 1 . . . . . . . . . Known Exits Taken 13 | . . . . . . . 1 . 1 . 1 . 1 . . . 1 . 1 1 1 1 1 1 . . . . 1 1 . . Unknown Exits Taken 12 | 1 1 1 1 1 1 1 . . . . . . . . . . . . . . . . . . 1 1 1 1 . . 1 . Scrap Searched 7 | . . . . . . 1 . . . . . . . . . . . . . . 1 . 5 . . . . . . . . . Spaces Dug 163 | . . . . . . . 3 1 3 2 28 2 6 1 4 . . . 23 . 4 2 7 37 1 . . 12 13 2 7 5 Terrain Destroyed 1004 | . . . 28 . . . 3 120 68 247 28 91 6 74 4 . . . 23 15 14 21 12 37 2 . . 183 13 2 7 6 Melee 163 | . . . . . . . 3 1 3 2 28 2 6 1 4 . . . 23 . 4 2 7 37 1 . . 12 13 2 7 5 Projectile 1 | . . . . . . . . . . 1 . . . . . . . . . . . . . . . . . . . . . . AOE 840 | . . . 28 . . . . 119 65 244 . 89 . 73 . . . . . 15 10 19 5 . 1 . . 171 . . . 1 Terrain Rammed . | . . . . . . . . . . . . . . . . . . . . . . . . . . . . . . . . . Walls Destroyed . | . . . . . . . . . . . . . . . . . . . . . . . . . . . . . . . . . Machines Disabled . | . . . . . . . . . . . . . . . . . . . . . . . . . . . . . . . . . Actions | -11 -10 -10 -9 -9 -9 -8 -8 -8 -8 -8 -7 -7 -7 -7 -6 -6 -6 -6 -5 -5 -5 -5 -4 -4 -4 -4 -4 -4 -3 -2 -1 -1 --------- Run | Yrd Mat Min Mat Min Exi Min Mat Gar Mat Gar Fac Gar Fac Gar Fac Was Fac DSF Fac Upp Upp War Pro Fac Ext Cet Arc Hub Res Res Acc Com Total 21569 | 88 627 170 612 102 267 162 179 774 1111 1547 1161 1512 450 978 253 292 2 204 1537 300 718 1053 811 1485 1134 470 430 364 874 1031 374 497 Wait 1853 | . 21 . 67 . . . 23 48 161 192 66 108 5 105 7 10 . 5 106 8 147 21 133 202 12 164 56 17 44 57 36 32 Move 17029 | 75 518 156 461 101 262 161 125 609 794 1150 923 1171 412 777 220 275 2 136 1212 260 502 901 633 1085 934 268 342 292 674 888 305 405 Hop . | . . . . . . . . . . . . . . . . . . . . . . . . . . . . . . . . . Pick Up 298 | 4 12 1 13 . 2 . 2 11 21 18 21 19 6 8 1 2 . 11 19 4 3 9 2 28 19 4 4 . 30 16 4 4 Fast Attach 197 | 6 3 . 14 . . . 3 1 10 13 9 11 2 2 2 . . 6 15 2 6 14 8 7 9 6 7 3 18 18 1 1 Attach 101 | . 2 . . . . . 1 6 1 11 14 12 . . 4 . . 5 6 1 2 3 . 8 2 2 . 3 7 3 3 5 Detach 20 | . . . 1 . . . . . . 1 2 2 . . 1 . . 2 1 . 1 2 . 2 . 1 . 1 1 1 1 . Swap 352 | . 7 4 6 . 1 . 1 10 27 26 20 14 7 24 5 1 . 10 30 11 19 9 13 30 18 4 4 4 19 9 8 11 Drop 433 | . 17 5 18 . 2 . 2 3 36 33 18 22 9 11 3 3 . 13 37 6 8 22 9 23 26 12 8 1 42 34 3 7 Fire 279 | 3 46 4 7 . . . . 20 19 19 3 13 . 21 2 . . 9 1 7 23 22 5 . 22 9 . 6 7 . . 11 Melee 749 | . . . 25 1 . 1 22 22 42 65 82 57 9 30 8 . . 7 110 1 7 3 8 100 33 . 9 37 32 5 13 20 Ram . | . . . . . . . . . . . . . . . . . . . . . . . . . . . . . . . . . Kick . | . . . . . . . . . . . . . . . . . . . . . . . . . . . . . . . . . Crush 4 | . 1 . . . . . . . . . 3 . . . . . . . . . . . . . . . . . . . . . Escape Stasis 48 | . . . . . . . . 2 . . . 40 . . . . . . . . . . . . 6 . . . . . . . Rewire 206 | . . . . . . . . 42 . 19 . 43 . . . 1 . . . . . 47 . . 53 . . . . . . 1 Trap . | . . . . . . . . . . . . . . . . . . . . . . . . . . . . . . . . . Miscellaneous . | . . . . . . . . . . . . . . . . . . . . . . . . . . . . . . . . . Route ------- -11/Scrapyard -10/Materials (discovered 4 exits: *Mat x2 / [*Min] / [*Sub]) -10/Mines -9/Materials (discovered 2 exits: *Mat / [*Min]) -9/Mines (discovered 2 exits: *Mat / *Exi) -9/Exiles -8/Mines -8/Materials -8/Garrison (discovered 4 exits: *Fac x3 / *Mat) -8/Materials (discovered 3 exits: *Fac x2 / Gar) -8/Garrison (discovered 3 exits: *Fac x3) -7/Factory (discovered 3 exits: *Fac / [*Low] / Gar) -7/Garrison (discovered 3 exits: *Fac x3) -7/Factory (discovered 2 exits: [*Sto] / Gar) -7/Garrison (discovered 3 exits: *Fac x3) -6/Factory -6/Waste -6/Factory -6/DSF -5/Factory (discovered 3 exits: *Fac / *Upp x2) -5/Upper Caves -5/Upper Caves (discovered 2 exits: *Fac / *War) -5/Warlord -4/Proximity Caves -4/Factory (discovered 5 exits: Upp x2 / *Ext x2 / Arm) -4/Extension (discovered 2 exits: *Res / *Cet) -4/Cetus (discovered 2 exits: *Res / [*Arc]) -4/Archives (discovered 3 exits: *Res / *Hub x2) -4/Hub_04(d) -3/Research (discovered 3 exits: *Res x3) -2/Research (discovered 3 exits: *Acc x3) -1/Access -1/Command History --------- Turn | Location | Event 12 | -11/Scrapyard | Discovered new exit (range 15) 141 | -11/Scrapyard | Entered Materials 313 | -10/Materials | Build established: Mutant 421 | -10/Materials | Discovered new exit (range 10) 632 | -10/Materials | Discovered new exit (range 9) 883 | -10/Materials | Discovered new exit (range 5) 1054 | -10/Materials | Discovered new exit (range 12) 1064 | -10/Materials | Entered Mines 1099 | -10/Mines | Met a Derelict bent on vengeance 1169 | -10/Mines | Build established: Scavenger-Mutant 1247 | -10/Mines | Discovered new exit (range 15) 1271 | -10/Mines | Entered Materials 1271 | -9/Materials | Evolved 2 slots: Propulsion x2 1598 | -9/Materials | Build established: Mutant 1881 | -9/Materials | Discovered new exit (range 13) 2225 | -9/Materials | Discovered new exit (range 14) 2265 | -9/Materials | Entered Mines 2304 | -9/Mines | Learned Materials emergency access door positions 2399 | -9/Mines | Discovered new exit (range 5) 2433 | -9/Mines | Deemed a non-threat by the Exiles lab entrance 2433 | -9/Mines | Discovered new exit (range 5) 2440 | -9/Mines | Entered Exiles 2481 | -9/Exiles | Met 8R-AWN 2510 | -9/Exiles | Met EX-HEX 2559 | -9/Exiles | Met EX-BIN 2578 | -9/Exiles | Aligned with FarCom system 2580 | -9/Exiles | Given EX-Vault access code 2619 | -9/Exiles | Opened EX-Vault 2633 | -9/Exiles | Found AWS/Thermal 2669 | -9/Exiles | Warned to stay clear of 0b10 Research branches 2722 | -9/Exiles | Met EX-DEC 2868 | -9/Exiles | Discovered new exit (range 14) 2890 | -9/Exiles | Left Exiles lab with AWS/Thermal 2890 | -9/Exiles | Entered Mines 3148 | -8/Mines | Discovered new exit (range 10) 3167 | -8/Mines | Entered Materials 3167 | -8/Materials | Evolved 2 slots: Utility x1, Weapon x1 3483 | -8/Materials | Identified exit to Garrison 3483 | -8/Materials | Entered Garrison 3483 | -8/Garrison | Warlord forces raided the area 3501 | -8/Garrison | Triggered checkpoint 3541 | -8/Garrison | Garrison Relay disabled 3577 | -8/Garrison | Phase Generator disabled 3665 | -8/Garrison | Triggered checkpoint 3677 | -8/Garrison | Triggered checkpoint 3695 | -8/Garrison | Triggered checkpoint 3815 | -8/Garrison | Triggered checkpoint 3828 | -8/Garrison | Warlord forces retreated 3837 | -8/Garrison | Garrison Relay disabled 3891 | -8/Garrison | Discovered new exit (range 11) 4181 | -8/Garrison | Discovered new exit (range 13) 4277 | -8/Garrison | Triggered checkpoint 4300 | -8/Garrison | Garrison Relay disabled 4594 | -8/Garrison | Triggered checkpoint 4601 | -8/Garrison | Discovered new exit (range 11) 4622 | -8/Garrison | Garrison Relay disabled 4681 | -8/Garrison | Triggered checkpoint 4709 | -8/Garrison | Discovered new exit (range 3) 4756 | -8/Garrison | Entered Materials 4756 | -8/Materials | Accompanied by 5 allies 5432 | -8/Materials | Discovered new exit (range 7) 5618 | -8/Materials | Build established: Gladiator 5839 | -8/Materials | Discovered new exit (range 10) 6379 | -8/Materials | Identified exit to Garrison 6379 | -8/Materials | Entered Garrison 6405 | -8/Garrison | Triggered checkpoint 6460 | -8/Garrison | Triggered checkpoint 6498 | -8/Garrison | Garrison Relay disabled 6681 | -8/Garrison | Triggered checkpoint 6705 | -8/Garrison | Garrison Relay disabled 6782 | -8/Garrison | Phase Generator disabled 6803 | -8/Garrison | Build established: Scavenger-Mutant 6927 | -8/Garrison | Learned Factory security intel 7095 | -8/Garrison | Triggered checkpoint 7099 | -8/Garrison | Triggered checkpoint 7135 | -8/Garrison | Core integrity fell below 50% 7170 | -8/Garrison | Destroyed 12 combat bots 7444 | -8/Garrison | Discovered new exit (range 2) 7564 | -8/Garrison | Spotted B-75 Beast 7633 | -8/Garrison | Triggered checkpoint 7679 | -8/Garrison | Triggered checkpoint 7764 | -8/Garrison | AWS/Thermal suddenly broke down 7943 | -8/Garrison | Triggered checkpoint 8000 | -8/Garrison | Garrison Relay disabled 8152 | -8/Garrison | Build established: Scavenger-Gladiator 8172 | -8/Garrison | Discovered new exit (range 12) 8355 | -8/Garrison | Triggered checkpoint 8424 | -8/Garrison | Garrison Relay disabled 8448 | -8/Garrison | Discovered new exit (range 3) 8684 | -8/Garrison | Entered Factory 8684 | -7/Factory | Evolved 2 slots: Propulsion x1, Weapon x1 9084 | -7/Factory | First assault squad dispatched 9319 | -7/Factory | Discovered new exit (range 11) 9370 | -7/Factory | Fabricated Mic. Nuclear Core (x2) 9427 | -7/Factory | Discovered new exit (range 7) 9677 | -7/Factory | Lost 6 parts (4n2w) 10261 | -7/Factory | Garrison activated, responded to threat 10449 | -7/Factory | Identified exit to Garrison 10467 | -7/Factory | Entered Garrison 10525 | -7/Garrison | Triggered checkpoint 10537 | -7/Garrison | Garrison Relay disabled 10717 | -7/Garrison | AWS/Thermal suddenly broke down 10717 | -7/Garrison | Triggered checkpoint 10723 | -7/Garrison | Triggered checkpoint 10730 | -7/Garrison | Core integrity fell below 50% 10757 | -7/Garrison | Destroyed 9 combat bots 10766 | -7/Garrison | Lost 3 parts (1p1n1w) 10882 | -7/Garrison | Triggered checkpoint 10917 | -7/Garrison | Destroyed 7 combat bots 10919 | -7/Garrison | Found embedded Infiltrators 10953 | -7/Garrison | Triggered checkpoint 10995 | -7/Garrison | Garrison Relay disabled 11042 | -7/Garrison | Discovered new exit (range 10) 11067 | -7/Garrison | Triggered checkpoint 11116 | -7/Garrison | Garrison Relay disabled 11123 | -7/Garrison | Triggered checkpoint 11166 | -7/Garrison | Lost 3 parts (3n) 11473 | -7/Garrison | Triggered checkpoint 11714 | -7/Garrison | Phase Generator disabled 11821 | -7/Garrison | Discovered new exit (range 7) 11849 | -7/Garrison | Build established: Commander-Gladiator 11871 | -7/Garrison | Triggered checkpoint 11898 | -7/Garrison | Garrison Relay disabled 11940 | -7/Garrison | Rescued a captive Derelict 12141 | -7/Garrison | Triggered checkpoint 12141 | -7/Garrison | AWS/Thermal suddenly broke down 12161 | -7/Garrison | Build established: Gladiator 12279 | -7/Garrison | Triggered checkpoint 12280 | -7/Garrison | Discovered new exit (range 15) 12480 | -7/Garrison | Garrison Relay disabled 12524 | -7/Garrison | Build established: Scavenger-Gladiator 12611 | -7/Garrison | Entered Factory 12611 | -7/Factory | Accompanied by 6 allies 12868 | -7/Factory | Discovered new exit (range 6) 13011 | -7/Factory | First assault squad dispatched 13322 | -7/Factory | Identified exit to Garrison 13322 | -7/Factory | Entered Garrison 13322 | -7/Garrison | Accompanied by 5 allies 13370 | -7/Garrison | Triggered checkpoint 13400 | -7/Garrison | Garrison Relay disabled 13506 | -7/Garrison | Triggered checkpoint 13516 | -7/Garrison | Triggered checkpoint 13566 | -7/Garrison | Lost 5 allies 13682 | -7/Garrison | Triggered checkpoint 13684 | -7/Garrison | Triggered checkpoint 13804 | -7/Garrison | Discovered new exit (range 14) 14026 | -7/Garrison | Triggered checkpoint 14133 | -7/Garrison | Garrison Relay disabled 14422 | -7/Garrison | Garrison Relay disabled 14476 | -7/Garrison | Discovered new exit (range 15) 14645 | -7/Garrison | Phase Generator disabled 14653 | -7/Garrison | Discovered new exit (range 14) 14710 | -7/Garrison | Triggered checkpoint 14743 | -7/Garrison | Garrison Relay disabled 14778 | -7/Garrison | Found embedded Infiltrators 14851 | -7/Garrison | Entered Factory 14851 | -6/Factory | Accompanied by 2 allies 14851 | -6/Factory | Evolved 2 slots: Utility x2 15201 | -6/Factory | First assault squad dispatched 15253 | -6/Factory | Manually triggered Chute Trap 15253 | -6/Factory | Sucked down chute 15253 | -6/Factory | Entered Waste 15253 | -6/Waste | The area was eerily silent 15283 | -6/Waste | 1 allies followed down the chute 15573 | -6/Waste | Discovered new exit (range 10) 15708 | -6/Waste | Entered Factory 15708 | -6/Factory | Accompanied by 1 ally 15712 | -6/Factory | Identified exit to DSF 15712 | -6/Factory | Entered DSF 15712 | -6/DSF | Accompanied by 1 ally 15762 | -6/DSF | Additional patrols routed to DSF 15971 | -6/DSF | Sterilization system engaged 15978 | -6/DSF | Discovered new exit (range 15) 15991 | -6/DSF | Ambient heat levels rising (+10) 15995 | -6/DSF | System corruption reached 10% 16006 | -6/DSF | Ambient heat levels rising (+10) 16021 | -6/DSF | Ambient heat levels rising (+10) 16024 | -6/DSF | Entered Factory 16024 | -5/Factory | Evolved 2 slots: Power x1, Utility x1 16633 | -5/Factory | Build established: Gladiator 17892 | -5/Factory | Discovered new exit (range 6) 17903 | -5/Factory | Identified exit to Factory 17921 | -5/Factory | Identified exit to Upper Caves 18499 | -5/Factory | Entered Upper Caves 18507 | -5/Upper Caves | Met a Warlord Commander 18508 | -5/Upper Caves | Learned location of Warlord (-5) 18509 | -5/Upper Caves | Warlord Commander delivered Encrypted Comm Array 18514 | -5/Upper Caves | Found Encrypted Comm Array 18574 | -5/Upper Caves | Identified exit to Upper Caves 18988 | -5/Upper Caves | Entered another Upper Caves area 19063 | -5/Upper Caves | Attracted the attention of an 0b10 checkpoint 19178 | -5/Upper Caves | Discovered exit to Factory (range 12) 19651 | -5/Upper Caves | Destroyed 7 combat bots 19911 | -5/Upper Caves | Found DCF Scrap (16 items) 20052 | -5/Upper Caves | Discovered new exit (range 4) 20055 | -5/Upper Caves | Identified exit to Warlord 20089 | -5/Upper Caves | Entered Warlord 20862 | -5/Warlord | Visited the Vortex Lab 20869 | -5/Warlord | Found Prototype Energy Gun 20869 | -5/Warlord | Identified Vortex Shotgun 20874 | -5/Warlord | Warlord's base attacked by MAIN.C 20881 | -5/Warlord | Found Prototype Energy Cannon 20881 | -5/Warlord | Identified Vortex Cannon 21047 | -5/Warlord | Found Prototype Reactor 21047 | -5/Warlord | Identified Vortex Chain Reactor 21055 | -5/Warlord | Found Prototype Device 21055 | -5/Warlord | Identified Thermal Barrier 21062 | -5/Warlord | Found Prototype Processor 21062 | -5/Warlord | Identified Exp. Armor Integrity Analyzer 21175 | -5/Warlord | Met Warlord 21224 | -5/Warlord | Warlord forces counterattacked 21430 | -5/Warlord | Opened side exit 21477 | -5/Warlord | Spotted Striker 21493 | -5/Warlord | Spotted Striker 21531 | -5/Warlord | Lost 5 allies 21549 | -5/Warlord | Warlord base infiltrated, sounded retreat 21587 | -5/Warlord | Spotted B-86 Titan 21613 | -5/Warlord | Spotted Executioner 21629 | -5/Warlord | Destroyed Executioner 21666 | -5/Warlord | Spotted Executioner 21667 | -5/Warlord | Spotted Striker 21675 | -5/Warlord | Destroyed Executioner 21686 | -5/Warlord | Destroyed Striker 21705 | -5/Warlord | Spotted Executioner 21706 | -5/Warlord | Spotted Striker 21707 | -5/Warlord | Destroyed 10 combat bots 21717 | -5/Warlord | Spotted Striker 21719 | -5/Warlord | Spotted Executioner 21721 | -5/Warlord | Spotted Striker 21751 | -5/Warlord | Discovered new exit (range 14) 21761 | -5/Warlord | Lost 8 allies 21774 | -5/Warlord | Identified exit to Proximity Caves 21776 | -5/Warlord | Entered Proximity Caves 22005 | -4/Proximity Caves | System corruption reached 10% 22259 | -4/Proximity Caves | Learned location of Armory (-4) 22603 | -4/Proximity Caves | Destroyed 9 combat bots 22750 | -4/Proximity Caves | Discovered exit to Factory (range 10) 22770 | -4/Proximity Caves | Learned Research terminal intel 23035 | -4/Proximity Caves | Entered Factory 23035 | -4/Factory | Evolved 2 slots: Utility x2 23341 | -4/Factory | Discovered new exit (range 10) 23370 | -4/Factory | Build established: Hacker-Gladiator 23671 | -4/Factory | Identified exit to Upper Caves 23671 | -4/Factory | Identified exit to Extension 23671 | -4/Factory | Identified exit to Armory 24651 | -4/Factory | Fabricated Imp. Force Booster (x2) 24745 | -4/Factory | Build established: Gladiator 25345 | -4/Factory | Entered Extension 25484 | -4/Extension | Rescued a captive Derelict 25485 | -4/Extension | Rescued a captive Derelict 25498 | -4/Extension | Rescued a captive Derelict 25498 | -4/Extension | Rescued a captive Derelict 25558 | -4/Extension | Rescued a captive Derelict 25724 | -4/Extension | Rescued a captive Derelict 25866 | -4/Extension | Rescued a captive Derelict 26053 | -4/Extension | Build established: Commander-Gladiator 26886 | -4/Extension | Spotted B-86 Titan 26903 | -4/Extension | Allies destroyed B-86 Titan 26915 | -4/Extension | Spotted B-86 Titan 26939 | -4/Extension | Destroyed B-86 Titan 26954 | -4/Extension | Lost 4 allies 27047 | -4/Extension | Rescued a captive Derelict 27105 | -4/Extension | Rescued a captive Derelict 27253 | -4/Extension | Rescued a captive Derelict 27253 | -4/Extension | Rescued a captive Derelict 27365 | -4/Extension | Rescued A7 27489 | -4/Extension | Build established: Scavenger-Gladiator 27528 | -4/Extension | System corruption reached 10% 27624 | -4/Extension | Rescued a captive Derelict 27627 | -4/Extension | Rescued a captive Derelict 27683 | -4/Extension | Discovered new exit (range 10) 27695 | -4/Extension | Discovered new exit (range 6) 27744 | -4/Extension | Entered Cetus 27744 | -4/Cetus | Accompanied by 16 allies (A7) 27749 | -4/Cetus | Acquired a Cetus Manufacturing Module code from A7 27777 | -4/Cetus | Spotted Cetus Guard 27777 | -4/Cetus | Spotted Cetus Guard 27777 | -4/Cetus | Spotted Cetus Guard 27779 | -4/Cetus | Spotted Cetus Guard 27785 | -4/Cetus | Allies destroyed Cetus Guard 27787 | -4/Cetus | Destroyed Cetus Guard 27787 | -4/Cetus | Allies destroyed Cetus Guard 27787 | -4/Cetus | Allies destroyed Cetus Guard 27880 | -4/Cetus | Build established: Commander-Gladiator 28047 | -4/Cetus | Started Cetus Manufacturing Module 28061 | -4/Cetus | Escorted A7 to Cetus Mainframe 28072 | -4/Cetus | Manufactured an Enhanced Grunt 28083 | -4/Cetus | Discovered new exit (range 15) 28097 | -4/Cetus | Manufactured an Enhanced Grunt 28122 | -4/Cetus | Manufactured an Enhanced Grunt 28147 | -4/Cetus | Manufactured an Enhanced Grunt 28172 | -4/Cetus | Manufactured an Enhanced Grunt 28275 | -4/Cetus | Spotted Cetus Guard 28276 | -4/Cetus | Spotted Cetus Guard 28277 | -4/Cetus | Spotted Cetus Guard 28277 | -4/Cetus | Spotted Cetus Guard 28287 | -4/Cetus | Destroyed Cetus Guard 28287 | -4/Cetus | Destroyed Cetus Guard 28288 | -4/Cetus | Destroyed Cetus Guard 28288 | -4/Cetus | Allies destroyed Cetus Guard 28300 | -4/Cetus | Discovered new exit (range 16) 28310 | -4/Cetus | Met Revision 17 28319 | -4/Cetus | System corruption reached 30% 28470 | -4/Cetus | Entered Archives 28470 | -4/Archives | Accompanied by 18 allies (A7) 28475 | -4/Archives | Received a hacking code to weaken MAIN.C 28516 | -4/Archives | Discovered new exit (range 15) 28536 | -4/Archives | Discovered new exit (range 16) 28658 | -4/Archives | Discovered new exit (range 16) 29126 | -4/Archives | Entered Hub_04(d) 29126 | -4/Hub_04(d) | Accompanied by 15 allies 29359 | -4/Hub_04(d) | Lost 5 allies 29551 | -4/Hub_04(d) | Lost 3 allies 29554 | -4/Hub_04(d) | Discovered new exit (range 6) 29626 | -4/Hub_04(d) | First assault squad dispatched 29666 | -4/Hub_04(d) | Lost 4 allies 29703 | -4/Hub_04(d) | Network Hub disabled 29722 | -4/Hub_04(d) | Entered Research 29722 | -3/Research | Evolved 2 slots: Propulsion x1, Weapon x1 29723 | -3/Research | Loaded intel: 22 terminal locations 29922 | -3/Research | Revision forces began assault on 0b10 29949 | -3/Research | Identified exit to Research 29951 | -3/Research | Met up with Revision 17++ 30014 | -3/Research | Build established: Scavenger-Gladiator 30115 | -3/Research | Spotted B-86 Titan 30422 | -3/Research | Research terminal network offline 30543 | -3/Research | Spotted Striker 30552 | -3/Research | Destroyed Striker 30567 | -3/Research | Found Imp. Powered Armor 30573 | -3/Research | Found Imp. Powered Armor 30583 | -3/Research | Found Imp. Powered Armor 30587 | -3/Research | Found Imp. Powered Armor 30603 | -3/Research | Lost 3 allies 30927 | -3/Research | Build established: Hacker-Gladiator 30962 | -3/Research | Found Gamma Bomb Array 30965 | -3/Research | Found Gamma Bomb Array 31037 | -3/Research | Entered another Research area 31037 | -2/Research | Warlord forces began assault on 0b10 31037 | -2/Research | Evolved 2 slots: Power x1, Utility x1 31062 | -2/Research | Distinguished unit "Lair Dwellers" dispatched to help 31062 | -2/Research | Distinguished unit "Golden Rifle" dispatched to help 31146 | -2/Research | Identified exit to Access 31147 | -2/Research | Research machine network offline 31635 | -2/Research | Met up with Warlord 31640 | -2/Research | Met DD-05H 31662 | -2/Research | Spotted Striker 31746 | -2/Research | Found Prototype Launcher 31746 | -2/Research | Identified Point Singularity Launcher 31817 | -2/Research | Borebot progress halted 31818 | -2/Research | Found Prototype Launcher 31818 | -2/Research | Identified Smartbomb Launcher 31823 | -2/Research | Borebot progress halted 31896 | -2/Research | Borebot progress halted 31991 | -2/Research | Found Prototype Processor 31991 | -2/Research | Identified Exp. Core Analyzer 31995 | -2/Research | Found Prototype Processor 31995 | -2/Research | Identified Exp. Targeting Computer 32223 | -2/Research | Lost 4 allies 32267 | -2/Research | Spotted Executioner 32392 | -2/Research | Lost 4 allies 32545 | -2/Research | Given Cave Seal Controls access code 32567 | -2/Research | Build established: Scavenger-Gladiator 32618 | -2/Research | Entered Access 32618 | -1/Access | Evolved 2 slots: Utility x2 33184 | -1/Access | Discovered new exit (range 7) 33198 | -1/Access | Entered Command 33454 | -1/Command | Disengaged cave seal 33454 | -1/Command | Derelicts emerged from the dark tunnel 33454 | -1/Command | Welcomed Warlord to Command 33506 | -1/Command | Disengaged cave seal 33506 | -1/Command | Derelicts emerged from the dark tunnel 33617 | -1/Command | Warlord commented on Warlord statues 33624 | -1/Command | Spotted Combat Programmer 33627 | -1/Command | Spotted M Guard 33628 | -1/Command | Spotted M Guard 33628 | -1/Command | Spotted Combat Programmer 33669 | -1/Command | All MAIN.C guards destroyed 33688 | -1/Command | Lost 9 allies 33871 | -1/Command | Build established: Scavenger-Mutant 33944 | -1/Command | Attacked by Warlord forces 33945 | -1/Command | Spotted L6-5UV(K) 33945 | -1/Command | Spotted SN-G7Z(g) 33945 | -1/Command | Spotted I2-KXQ(K) 33945 | -1/Command | Spotted Z4-E11(K) 33945 | -1/Command | Spotted XY-YW0(K) 33945 | -1/Command | Spotted RC-NCD(D) 33945 | -1/Command | Spotted GR-DQI(D) 33945 | -1/Command | Spotted SC-APS(D) 33969 | -1/Command | Destroyed RC-NCD(D) 33974 | -1/Command | Destroyed SN-G7Z(g) 33977 | -1/Command | Self-destructed Last Messages --------------- 33969_ UC-R8O(M) destroyed. 33969_ 9L-I9E(M) destroyed. 33969_ Centrium Heavy Treads destroyed. 33969_ 5E-KBL(p) resets I2-KXQ(K), system corruption cleaned. 33972_ 0A-93Z(p) destroyed. 33972_ Destroyed Neutrino Core. 33972_ 9E-YLT(g) destroyed. 33972_ G1-FWE(g) destroyed. 33972_ Destroyed Beamcaster. 33972_ Enh. Force Lance destroyed. 33972_ Point Defense System destroyed. 33974_ Destroyed Plasma Flamer. 33974_ Destroyed Particle Cleaver. 33974_ 02-C2W(g) destroyed. 33974_ 5E-KBL(p) destroyed. 33974_ SN-G7Z(g) destroyed. 33976_ Centrium Heavy Treads destroyed. 33977_ WO-B6B(m) fits Unknown Energy Gun on 9L-XX0(p). Map ----- +----------------------------------------------------+ | ?????????????????????????????????????????????????? | | ?????????????????????????????????????????????????? | | ?????????????????????????????????????????????????? | | ?????????????????????????????????????????????????? | | ?????????????????????????????????????????????????? | | ?????????????????????????????????????????????????? | | ?????????????????????????????????????????????????? | | ?????????????????????????????????????????????????? | | ?????????????????????????????????????????????????? | | ?????????????????????????????????????????????????? | | ?????????????????????????????????????????????????? | | ?????????????????????????????????????????????????? | | ?????????????????????????????????????????????????? | | ?????????????????????????????????????????????????? | | ?????????????????????????????????????????????????? | | ?????????????????????????????????????????????????? | | ?????????????????????????????? ?????????????????? | | ?????????????????????????????? #???????????????? | | ?????????????????????????????? #???????????????? | | ?????????????????????????????# #???????????????? | | ?????????????????????????????# #???????????????? | | ?????????????????????????????# #???????????????? | | ?????????????????????????????# #???????????????? | | ?????????????????????????????# ##??????????????? | | ??????????????????????#"""#??# # #######???????? | | ??????????????????????# @#?## # # # ####????? | | ??????????????????????# K### ######### # ##?### | | ??????????????????????# K # ## # #?# | | ??????????????????????#pDD##%# # ### | | ??????????????????????# DDD! ! %* | | ??????????????????????#]KhD%=% = | | ??????????????????????# pWM=!! | | ??????????????????????# m !!% | | ??????????????????????# h*![ | | ??????????????????????# #= " ### ### | | ??????????????????????###### ## # #?# | | ???????????????????????????######### #########?### | | ???????????????????????????????????#####?????????? | | ?????????????????????????????????????????????????? | | ?????????????????????????????????????????????????? | | ?????????????????????????????????????????????????? | | ?????????????????????????????????????????????????? | | ?????????????????????????????????????????????????? | | ?????????????????????????????????????????????????? | | ?????????????????????????????????????????????????? | | ?????????????????????????????????????????????????? | | ?????????????????????????????????????????????????? | | ?????????????????????????????????????????????????? | | ?????????????????????????????????????????????????? | | ?????????????????????????????????????????????????? | +----------------------------------------------------+ Best States ------------- Heat Dissipation 72 Energy Generation 70 Energy Capacity 1350 Matter Stores 300 Matter Capacity 300 Sight Range 16 Robot Scan Range 16 Terrain Scan Range 20 Terrain Scan Density 110 Jamming Range 14 Power Amplification 30 Base Temperature (-) 150 EM Shielding 2 Armor Coverage 750 Resistance: TH 30 Resistance: EM 25 Core Shielding 20 Point Defense Rating 480 Melee Speed Boost 30 Evasion (%) 55 Melee Accuracy 8 Core Analysis 8 Armor Integrity Analysis 50 Recoil Reduction 6 Force Boost 30 Offensive Hacking 36 Defensive Hacking 14 Item Schematics ----------------- ECM Suite | -9/Materials | Scanalyzed Hcp. Storage Unit | -9/Materials | Hacked Huge Storage Unit | -4/Factory | Hacked Robot Schematics ------------------ None Fabricated ------------ Mic. Nuclear Core | x2 | -7/Factory | Preloaded Imp. Force Booster | x2 | -4/Factory | Preloaded Repaired ---------- Nothing Studied --------- None Alien Tech Used ----------------- None Achievements -------------- Corridor Of Doom Doshington Challenges ------------ None Game ------ Seed WeldingNullNanovents Manual? 0 Play Time 04:40:15 Cumulative 449.0 hours Start 2026.07.13 @ 22:41:14 End 2026.07.14 @ 04:33:53 Sessions 1 Manual Loads 0 Difficulty Rogue Special Mode None Game No. 409 Rogue 409 Adventurer 0 Explorer 0 Win Type - Total 11 Types 7/0/2/1/0/0/0/0/0/1 Lore% 61 Gallery% 69 Achievement% 65 Wizard Run 0 Options --------- Layout 1 ASCII 0 Keyboard 0 Movement Mouse Keybinds 0 Fullscreen 2 Font 24/Cog Map View 50x35 Zoom Use 12% Tactical HUD 1 Map Filters NONE Filters NONE Steam 1 RUN: 796b48ec-ee99-4eca-8cbe-28274165230c